{"text_format":"1","workbook":"xlsx","n_sheets":6,"sheets":["Mode Emploi","Recommandations","Résultats globaux","Résultats par Article","Conseils","Déclaration ISO 17050"],"not_rendered":{"charts":8,"images":3,"macros":1,"external_links":1,"defined_names":14,"comments":1,"pivot_tables":0},"unopened":[],"bounds":{"document_bytes":16777216,"sheet_cells":100000,"rows_first":2000,"rows_last":500,"rows_between":2000,"halvings":0,"cell_chars":16384,"cell_head_chars":4096},"cells_cut":0,"cells_raw":0,"read":"whole","date_system":"1900"}

{"sheet":"Mode Emploi","index":0,"n_rows":21,"n_cols":14,"rows_kept":21,"cut":false,"hidden":false,"merged":[[1,3,1,9],[5,1,5,3],[6,1,6,3],[6,4,6,7],[2,3,2,9],[21,1,21,9],[16,1,16,2],[15,8,15,9],[16,8,16,9],[20,1,20,9],[19,1,19,2],[18,1,18,2],[17,1,17,2],[17,8,17,9],[18,8,18,9],[19,8,19,9],[13,1,13,9],[4,1,4,3],[4,4,4,9],[15,1,15,2],[3,1,3,9],[8,1,8,9],[9,1,12,9],[14,5,14,9],[5,4,5,9],[6,8,6,9],[14,1,14,4]]}
[null,null,null,null,null,null,null,null,null,"Enregistrement qualité :  A4 100% vertical"]
[null,null,null,"   Autodiagnostic selon la norme ISO/DIS 20700:2016"]
[null,null,null," \"Lignes directrices relatives aux services de conseil en management\", édition  Afnor, \nwww.afnor.org, mai 2016"]
[]
[null,"Etablissement :",null,null,"Nom de l'établissement / entreprise / organisation..."]
[null," Utilisateur : ",null,null,"NOM et Prénom"]
[null," Contact d'utilisateur :",null,null,"email :",null,null,null,"Tél :"]
[]
[null,"Mode d'emploi"]
[null,"\nOBJECTIF:   \nCet outil permet aux consultants de s'assurer de la conformité de leurs activités de conseil selon les exigences de la norme ISO/DIS 20700: 2016\nNB: Cet outil ne garantit pas une certification\n\nPRESENTATION DES ELEMENTS:  \nLa grille se présente sous format Excel constitué de six (6) onglets :\n    - Mode d'emploi :\n         * Explicite le fonctionnement de l'outil et les critères d'évaluation définis\n    - Recommandations : \n         * Définit des critères d'évaluation par article et sous article\n    - Résultats globaux :\n         * Affiche tous les résultats réunis sur une cartographie globale\n         * Permet de mettre en place un plan d'action en se basant sur les résultats globaux\n    - Résultats par article : \n         * Affiche un taux de CONFORMITÉ par article sous forme de graphe radar \n         * Permet de mettre en oeuvre un plan d'actions prioritaires\n     - Conseils : \n         * Expliquent globalement l'objet de chaque article de la norme\n    - Déclaration ISO 17050 : \n        * Permet au consultant de s'auto-déclarer conforme selon la norme 17050"]
[]
[null,null,null,null,null,null,null,null,null,null,null,null,"Utilitaires pour l'Autodiagnostic"]
[null,null,null,null,null,null,null,null,null,null,null,null,"Paramétrage des affectations selon le N° du choix"]
[null,null,null,null,null,null,null,null,null,null,null,null,"Utilisé pour  {Exigences} : affectation d'un N° selon le choix réalisé"]
[null,"Niveaux de VÉRACITÉ quant à la RÉALISATION \ndes actions associées aux recommandations de la norme",null,null,null,"LIBELLÉS des niveaux de CONFORMITÉ \ndes ARTICLES de la norme ",null,null,null,null,null,null,"Choix proposé","A faire en manuel\nN° du choix croissant selon son  Ordre Alphabétique : 1 à …"]
[null,"Libellés explicites \ndes niveaux de VÉRACITÉ",null,"Choix de \nVÉRACITÉ","Taux de \nVÉRACITÉ","Taux moyen \nMinimal","Taux moyen\nMaximal","Niveaux de CONFORMITÉ","Libellés explicites \ndes niveaux de CONFORMITÉ",null,null,null,{"$f":"D16","v":"Choix de \rVÉRACITÉ"},1]
[null,"Niveau 1 : L'action n'est pas réalisée ou alors de manière très aléatoire.",null,"Faux",0,0,{"$f":"F18-0.01","v":9.0000000000000011E-2},"Insuffisant","Conformité de niveau 1 : Il est nécessaire de formaliser les activités réalisées.",null,null,null,{"$f":"D17","v":"Faux"},2]
[null,"Niveau 2 : L'action est réalisée quelques fois de manière informelle.",null,"Plutôt Faux",{"$f":"(F18+G18)/2","v":0.29499999999999998},0.1,{"$f":"F19-0.01","v":0.49},"Informel","Conformité de niveau 2 : Il est nécessaire de pérenniser la bonne exécution des activités.",null,null,null,{"$f":"D18","v":"Plutôt Faux"},3]
[null,"Niveau 3 : L'action est formalisée et réalisée. ",null,"Plutôt Vrai",{"$f":"(F19+G19)/2","v":0.69500000000000006},0.5,{"$f":"F20-0.01","v":0.89},"Convaincant","Conformité de niveau 3 : Il est nécessaire de tracer et d'améliorer les activités.",null,null,null,{"$f":"D19","v":"Plutôt Vrai"},4]
[null,"Niveau 4 : L'action est formalisée, réalisée, tracée et améliorée.",null,"Vrai",1,0.9,1,"Conforme","Conformité de niveau 4 : BRAVO ! Maintenez et communiquez vos résultats.",null,null,null,{"$f":"D20","v":"Vrai"},5]
[null,"NB : Vous pouvez modifier les limites minimales ci-dessus des intervalles de conformité"]

{"sheet":"Recommandations","index":1,"n_rows":91,"n_cols":23,"rows_kept":91,"cut":false,"hidden":false,"merged":[[1,1,1,5],[39,4,39,5],[3,0,3,1],[2,0,2,1],[2,2,2,5],[3,2,3,4],[5,2,5,3],[4,0,5,1],[6,0,7,1],[6,2,7,4],[75,4,75,5],[41,4,41,5],[42,4,42,5],[3,5,7,5],[11,4,11,5],[35,4,35,5],[4,2,4,4],[10,4,10,5],[64,4,64,5],[65,4,65,5],[48,4,48,5],[50,4,50,5],[52,4,52,5],[76,4,76,5],[80,4,80,5],[85,4,85,5],[87,4,87,5],[82,4,82,5]]}
[{"$f":"'Mode Emploi'!B1","v":0},null,null,null,null,"Impression sur pages A4 100% en format horizontal"]
[null,"  Autodiagnostic sur les recommandations de l'ISO/DIS 20700:2016",null,null,null,null,null,null,null,null,null,null,null,null,null,null,"Somme des pondérations des Articles","Taux moyen de conformité sur la Norme","Niveau de RESPECT pour la norme"]
[{"$f":"'Mode Emploi'!B5","v":"Etablissement :"},null,{"$f":"'Mode Emploi'!E5","v":"Nom de l'établissement / entreprise / organisation..."},null,null,null,null,null,null,null,"Somme des pondérations sur les exigences","Taux  moyen de CONFORMITÉ pour le sous-article","Niveau de RESPECT pour le sous-article","Automatique : pondération de chaque sous- chapitre","Taux  moyen de CONFORMITÉ pondéré pour le sous-article"]
["Date de l'autodiagnostic : ",null,null,null,null,"Signature du responsable de l'autodiagnostic :\n\n\n\n\n"]
["Responsable de l'autodiagnostic : ",null,"NOM et Prénom",null,null,null,null,"Choix réalisé","N° du choix réalisé","% Véracité du choix","Automatique : pondération de chaque exigence","Taux de CONFORMITÉ pondéré sur l'exigence",null,null,null,"Resultats, Actions et REX "]
[null,null,"Tél :",null,"@ :"]
["L'équipe d'autodiagnostic :",null,"Noms et Prénoms des participants"]
[]
[]
["Réf.","Critères des recommandations des articles de la norme","Evaluations","Taux %","Libellés \ndes évaluations","Modes de preuve \net commentaires",null,null,null,null,null,null,null,null,null,null,null,null,null,null,null,"Choix proposé","A faire en manuel\nN° du choix croissant selon son  Ordre Alphabétique : 1 à …"]
["Art. 4","Principes",{"$f":"P11","v":"Insuffisant"},{"$f":"O11","v":0},{"$f":"IFERROR(IF(D11<='Mode Emploi'!$G$17,'Mode Emploi'!$I$17,IF(D11<='Mode Emploi'!$G$18,'Mode Emploi'!$I$18,IF(D11<='Mode Emploi'!$G$19,'Mode Emploi'!$I$19,'Mode Emploi'!$I$20))),\"\")","v":"Conformité de niveau 1 : Il est nécessaire de formaliser les activités réalisées."},null,null,"Article",null,null,null,null,"vérifier si Somme = 1 =>  ",{"$f":"SUM(N12:N41)","v":1},{"$f":"IFERROR(SUM(O12:O41),\"\")","v":0},{"$f":"IFERROR(IF(O11<='Mode Emploi'!$G$17,'Mode Emploi'!$H$17,IF(O11<='Mode Emploi'!$G$18,'Mode Emploi'!$H$18,IF(O11<='Mode Emploi'!$G$19,'Mode Emploi'!$H$19,'Mode Emploi'!$H$20))),\"\")","v":"Insuffisant"},{"$f":"1/7","v":0.14285714285714285},{"$f":"O11*Q11","v":0},null,null,null,"Choix de \nVÉRACITÉ",1]
["4.3","Politiques",{"$f":"M12","v":"Insuffisant"},{"$f":"L12","v":0},{"$f":"IFERROR(IF(D12<='Mode Emploi'!$G$17,'Mode Emploi'!$I$17,IF(D12<='Mode Emploi'!$G$18,'Mode Emploi'!$I$18,IF(D12<='Mode Emploi'!$G$19,'Mode Emploi'!$I$19,'Mode Emploi'!$I$20))),\"\")","v":"Conformité de niveau 1 : Il est nécessaire de formaliser les activités réalisées."},null,"Nb critères","Sous-Article",null,"vérifier si Somme = 1 =>  ",{"$f":"SUM(K13:K35)","v":0.99999999999999956},{"$f":"IFERROR(SUM(L13:L35),\"\")","v":0},{"$f":"IFERROR(IF(L12<='Mode Emploi'!$G$17,'Mode Emploi'!$H$17,IF(L12<='Mode Emploi'!$G$18,'Mode Emploi'!$H$18,IF(L12<='Mode Emploi'!$G$19,'Mode Emploi'!$H$19,'Mode Emploi'!$H$20))),\"\")","v":"Insuffisant"},{"$f":"1/COUNTA($M$12:$M$41)","v":0.33333333333333331},{"$f":"N12*L12","v":0},null,null,null,null,null,null,"Faux",2]
["cr 1","Le consultant a une bonne connaissance des lois et des réglementations liées ses services et à celles du client.","Choix de \nVÉRACITÉ",{"$f":"J13","v":""},{"$f":"CHOOSE(I13,\"Libellé du critère quand il sera choisi\",'Mode Emploi'!$B$17,'Mode Emploi'!$B$18,'Mode Emploi'!$B$19,'Mode Emploi'!$B$20,,)","v":"Libellé du critère quand il sera choisi"},null,1,{"$f":"C13","v":"Choix de \rVÉRACITÉ"},{"$f":"IFERROR((VLOOKUP(C13,'Mode Emploi'!$M$16:$N$20,2)),\"\")","v":1},{"$f":"IFERROR(CHOOSE(I13,\"\",'Mode Emploi'!$E$17,'Mode Emploi'!$E$18,'Mode Emploi'!$E$19,'Mode Emploi'!$E$20,),\"\")","v":""},{"$f":"1/COUNTA($B$13:$B$35)","v":4.3478260869565216E-2},{"$f":"IFERROR(J13*K13,\"\")","v":""},null,null,null,null,null,null,null,null,null,"Plutôt Faux",3]
[{"$f":"CONCATENATE(\"cr \",MID(A13,3,4)+1)","v":"cr 2"},"L’accord inclut l’accès aux informations, la consultation, la communication, les rôles et les responsabilités des parties prenantes.","Choix de \nVÉRACITÉ",{"$f":"J14","v":""},{"$f":"CHOOSE(I14,\"Libellé du critère quand il sera choisi\",'Mode Emploi'!$B$17,'Mode Emploi'!$B$18,'Mode Emploi'!$B$19,'Mode Emploi'!$B$20,,)","v":"Libellé du critère quand il sera choisi"},null,{"$f":"G13+1","v":2},{"$f":"C14","v":"Choix de \rVÉRACITÉ"},{"$f":"IFERROR((VLOOKUP(C14,'Mode Emploi'!$M$16:$N$20,2)),\"\")","v":1},{"$f":"IFERROR(CHOOSE(I14,\"\",'Mode Emploi'!$E$17,'Mode Emploi'!$E$18,'Mode Emploi'!$E$19,'Mode Emploi'!$E$20,),\"\")","v":""},{"$f":"1/COUNTA($B$13:$B$35)","v":4.3478260869565216E-2},{"$f":"IFERROR(J14*K14,\"\")","v":""},null,null,null,null,null,null,null,null,null,"Plutôt Vrai",4]
[{"$f":"CONCATENATE(\"cr \",MID(A14,3,4)+1)","v":"cr 3"},"Le code de conduite inclut des sujets majeurs tels que l'attitude professionnelle, le développement durable, la responsabilité sociale, le conflit d'intérêts et l'intégrité.","Choix de \nVÉRACITÉ","",{"$f":"CHOOSE(I15,\"Libellé du critère quand il sera choisi\",'Mode Emploi'!$B$17,'Mode Emploi'!$B$18,'Mode Emploi'!$B$19,'Mode Emploi'!$B$20,,)","v":"Libellé du critère quand il sera choisi"},null,{"$f":"G14+1","v":3},{"$f":"C15","v":"Choix de \rVÉRACITÉ"},{"$f":"IFERROR((VLOOKUP(C15,'Mode Emploi'!$M$16:$N$20,2)),\"\")","v":1},{"$f":"IFERROR(CHOOSE(I15,\"\",'Mode Emploi'!$E$17,'Mode Emploi'!$E$18,'Mode Emploi'!$E$19,'Mode Emploi'!$E$20,),\"\")","v":""},4.3478260869565216E-2,{"$f":"IFERROR(J15*K15,\"\")","v":""},null,null,null,null,null,null,null,null,null,"Vrai",5]
[{"$f":"CONCATENATE(\"cr \",MID(A15,3,4)+1)","v":"cr 4"},"Le code de conduite applicable est présent dans l'accord.","Choix de \nVÉRACITÉ","",{"$f":"CHOOSE(I16,\"Libellé du critère quand il sera choisi\",'Mode Emploi'!$B$17,'Mode Emploi'!$B$18,'Mode Emploi'!$B$19,'Mode Emploi'!$B$20,,)","v":"Libellé du critère quand il sera choisi"},null,{"$f":"G15+1","v":4},{"$f":"C16","v":"Choix de \rVÉRACITÉ"},{"$f":"IFERROR((VLOOKUP(C16,'Mode Emploi'!$M$16:$N$20,2)),\"\")","v":1},{"$f":"IFERROR(CHOOSE(I16,\"\",'Mode Emploi'!$E$17,'Mode Emploi'!$E$18,'Mode Emploi'!$E$19,'Mode Emploi'!$E$20,),\"\")","v":""},4.3478260869565216E-2,{"$f":"IFERROR(J16*K16,\"\")","v":""}]
[{"$f":"CONCATENATE(\"cr \",MID(A16,3,4)+1)","v":"cr 5"},"La gouvernance du projet définit le périmètre de la mission et les livrables.","Choix de \nVÉRACITÉ","",{"$f":"CHOOSE(I17,\"Libellé du critère quand il sera choisi\",'Mode Emploi'!$B$17,'Mode Emploi'!$B$18,'Mode Emploi'!$B$19,'Mode Emploi'!$B$20,,)","v":"Libellé du critère quand il sera choisi"},null,5,{"$f":"C17","v":"Choix de \rVÉRACITÉ"},{"$f":"IFERROR((VLOOKUP(C17,'Mode Emploi'!$M$16:$N$20,2)),\"\")","v":1},{"$f":"IFERROR(CHOOSE(I17,\"\",'Mode Emploi'!$E$17,'Mode Emploi'!$E$18,'Mode Emploi'!$E$19,'Mode Emploi'!$E$20,),\"\")","v":""},4.3478260869565216E-2,""]
["cr 6","La gouvernance du projet définit la structure de management y compris les représentants du client.\n","Choix de \nVÉRACITÉ","",{"$f":"CHOOSE(I18,\"Libellé du critère quand il sera choisi\",'Mode Emploi'!$B$17,'Mode Emploi'!$B$18,'Mode Emploi'!$B$19,'Mode Emploi'!$B$20,,)","v":"Libellé du critère quand il sera choisi"},null,6,"Choix de \rVÉRACITÉ",{"$f":"IFERROR((VLOOKUP(C18,'Mode Emploi'!$M$16:$N$20,2)),\"\")","v":1},{"$f":"IFERROR(CHOOSE(I18,\"\",'Mode Emploi'!$E$17,'Mode Emploi'!$E$18,'Mode Emploi'!$E$19,'Mode Emploi'!$E$20,),\"\")","v":""},4.3478260869565216E-2,""]
["cr 7","La gouvernance du projet définit les politiques, les processus et les méthodologies à mettre en place.\n","Choix de \nVÉRACITÉ","",{"$f":"CHOOSE(I19,\"Libellé du critère quand il sera choisi\",'Mode Emploi'!$B$17,'Mode Emploi'!$B$18,'Mode Emploi'!$B$19,'Mode Emploi'!$B$20,,)","v":"Libellé du critère quand il sera choisi"},null,7,"Choix de \rVÉRACITÉ",{"$f":"IFERROR((VLOOKUP(C19,'Mode Emploi'!$M$16:$N$20,2)),\"\")","v":1},{"$f":"IFERROR(CHOOSE(I19,\"\",'Mode Emploi'!$E$17,'Mode Emploi'!$E$18,'Mode Emploi'!$E$19,'Mode Emploi'!$E$20,),\"\")","v":""},4.3478260869565216E-2,""]
["cr 8","La gouvernance du projet définit les responsabilités et les livrables des parties prenantes.","Choix de \nVÉRACITÉ","",{"$f":"CHOOSE(I20,\"Libellé du critère quand il sera choisi\",'Mode Emploi'!$B$17,'Mode Emploi'!$B$18,'Mode Emploi'!$B$19,'Mode Emploi'!$B$20,,)","v":"Libellé du critère quand il sera choisi"},null,8,"Choix de \rVÉRACITÉ",{"$f":"IFERROR((VLOOKUP(C20,'Mode Emploi'!$M$16:$N$20,2)),\"\")","v":1},{"$f":"IFERROR(CHOOSE(I20,\"\",'Mode Emploi'!$E$17,'Mode Emploi'!$E$18,'Mode Emploi'!$E$19,'Mode Emploi'!$E$20,),\"\")","v":""},4.3478260869565216E-2,""]
["cr 9","La gouvernance du projet définit le processus d'identification et de management des risques.","Choix de \nVÉRACITÉ","",{"$f":"CHOOSE(I21,\"Libellé du critère quand il sera choisi\",'Mode Emploi'!$B$17,'Mode Emploi'!$B$18,'Mode Emploi'!$B$19,'Mode Emploi'!$B$20,,)","v":"Libellé du critère quand il sera choisi"},null,9,"Choix de \rVÉRACITÉ",{"$f":"IFERROR((VLOOKUP(C21,'Mode Emploi'!$M$16:$N$20,2)),\"\")","v":1},{"$f":"IFERROR(CHOOSE(I21,\"\",'Mode Emploi'!$E$17,'Mode Emploi'!$E$18,'Mode Emploi'!$E$19,'Mode Emploi'!$E$20,),\"\")","v":""},4.3478260869565216E-2,""]
["cr 10","La gouvernance du projet définit les mécanismes et les moyens de contrôle.","Choix de \nVÉRACITÉ","",{"$f":"CHOOSE(I22,\"Libellé du critère quand il sera choisi\",'Mode Emploi'!$B$17,'Mode Emploi'!$B$18,'Mode Emploi'!$B$19,'Mode Emploi'!$B$20,,)","v":"Libellé du critère quand il sera choisi"},null,10,"Choix de \rVÉRACITÉ",{"$f":"IFERROR((VLOOKUP(C22,'Mode Emploi'!$M$16:$N$20,2)),\"\")","v":1},{"$f":"IFERROR(CHOOSE(I22,\"\",'Mode Emploi'!$E$17,'Mode Emploi'!$E$18,'Mode Emploi'!$E$19,'Mode Emploi'!$E$20,),\"\")","v":""},4.3478260869565216E-2,""]
["cr 11","La gouvernance du projet est assurée conjointement avec le client.","Choix de \nVÉRACITÉ","",{"$f":"CHOOSE(I23,\"Libellé du critère quand il sera choisi\",'Mode Emploi'!$B$17,'Mode Emploi'!$B$18,'Mode Emploi'!$B$19,'Mode Emploi'!$B$20,,)","v":"Libellé du critère quand il sera choisi"},null,11,"Choix de \rVÉRACITÉ",{"$f":"IFERROR((VLOOKUP(C23,'Mode Emploi'!$M$16:$N$20,2)),\"\")","v":1},{"$f":"IFERROR(CHOOSE(I23,\"\",'Mode Emploi'!$E$17,'Mode Emploi'!$E$18,'Mode Emploi'!$E$19,'Mode Emploi'!$E$20,),\"\")","v":""},4.3478260869565216E-2,""]
["cr 12","Le consultant n’accepte que les missions qu’il est capable d’accomplir.","Choix de \nVÉRACITÉ","",{"$f":"CHOOSE(I24,\"Libellé du critère quand il sera choisi\",'Mode Emploi'!$B$17,'Mode Emploi'!$B$18,'Mode Emploi'!$B$19,'Mode Emploi'!$B$20,,)","v":"Libellé du critère quand il sera choisi"},null,12,"Choix de \rVÉRACITÉ",{"$f":"IFERROR((VLOOKUP(C24,'Mode Emploi'!$M$16:$N$20,2)),\"\")","v":1},{"$f":"IFERROR(CHOOSE(I24,\"\",'Mode Emploi'!$E$17,'Mode Emploi'!$E$18,'Mode Emploi'!$E$19,'Mode Emploi'!$E$20,),\"\")","v":""},4.3478260869565216E-2,""]
["cr 13","Le consultant adopte une stratégie et une politique efficaces pour communiquer avec les parties prenantes au cours de la mission.","Choix de \nVÉRACITÉ","",{"$f":"CHOOSE(I25,\"Libellé du critère quand il sera choisi\",'Mode Emploi'!$B$17,'Mode Emploi'!$B$18,'Mode Emploi'!$B$19,'Mode Emploi'!$B$20,,)","v":"Libellé du critère quand il sera choisi"},null,13,"Choix de \rVÉRACITÉ",{"$f":"IFERROR((VLOOKUP(C25,'Mode Emploi'!$M$16:$N$20,2)),\"\")","v":1},{"$f":"IFERROR(CHOOSE(I25,\"\",'Mode Emploi'!$E$17,'Mode Emploi'!$E$18,'Mode Emploi'!$E$19,'Mode Emploi'!$E$20,),\"\")","v":""},4.3478260869565216E-2,""]
["cr 14","La politique couvre les données et les informations confidentielles du client ainsi que les droits de propriété intellectuelle du consultant.","Choix de \nVÉRACITÉ","",{"$f":"CHOOSE(I26,\"Libellé du critère quand il sera choisi\",'Mode Emploi'!$B$17,'Mode Emploi'!$B$18,'Mode Emploi'!$B$19,'Mode Emploi'!$B$20,,)","v":"Libellé du critère quand il sera choisi"},null,14,"Choix de \rVÉRACITÉ",{"$f":"IFERROR((VLOOKUP(C26,'Mode Emploi'!$M$16:$N$20,2)),\"\")","v":1},{"$f":"IFERROR(CHOOSE(I26,\"\",'Mode Emploi'!$E$17,'Mode Emploi'!$E$18,'Mode Emploi'!$E$19,'Mode Emploi'!$E$20,),\"\")","v":""},4.3478260869565216E-2,""]
["cr 15","Le consultant n'utilise pas les données des parties prenantes sans autorisation.","Choix de \nVÉRACITÉ","",{"$f":"CHOOSE(I27,\"Libellé du critère quand il sera choisi\",'Mode Emploi'!$B$17,'Mode Emploi'!$B$18,'Mode Emploi'!$B$19,'Mode Emploi'!$B$20,,)","v":"Libellé du critère quand il sera choisi"},null,15,"Choix de \rVÉRACITÉ",{"$f":"IFERROR((VLOOKUP(C27,'Mode Emploi'!$M$16:$N$20,2)),\"\")","v":1},{"$f":"IFERROR(CHOOSE(I27,\"\",'Mode Emploi'!$E$17,'Mode Emploi'!$E$18,'Mode Emploi'!$E$19,'Mode Emploi'!$E$20,),\"\")","v":""},4.3478260869565216E-2,""]
["cr 16","Le résultat et les livrables de la mission concernant les droits de propriété intellectuelle du consultant sont convenus pendant la phase de proposition.","Choix de \nVÉRACITÉ","",{"$f":"CHOOSE(I28,\"Libellé du critère quand il sera choisi\",'Mode Emploi'!$B$17,'Mode Emploi'!$B$18,'Mode Emploi'!$B$19,'Mode Emploi'!$B$20,,)","v":"Libellé du critère quand il sera choisi"},null,16,"Choix de \rVÉRACITÉ",{"$f":"IFERROR((VLOOKUP(C28,'Mode Emploi'!$M$16:$N$20,2)),\"\")","v":1},{"$f":"IFERROR(CHOOSE(I28,\"\",'Mode Emploi'!$E$17,'Mode Emploi'!$E$18,'Mode Emploi'!$E$19,'Mode Emploi'!$E$20,),\"\")","v":""},4.3478260869565216E-2,""]
["cr 17","Le consultant a une responsabilité sociale de la démonstration de l'apport aux parties prenantes et de la contribution au développement durable.","Choix de \nVÉRACITÉ","",{"$f":"CHOOSE(I29,\"Libellé du critère quand il sera choisi\",'Mode Emploi'!$B$17,'Mode Emploi'!$B$18,'Mode Emploi'!$B$19,'Mode Emploi'!$B$20,,)","v":"Libellé du critère quand il sera choisi"},null,17,"Choix de \rVÉRACITÉ",{"$f":"IFERROR((VLOOKUP(C29,'Mode Emploi'!$M$16:$N$20,2)),\"\")","v":1},{"$f":"IFERROR(CHOOSE(I29,\"\",'Mode Emploi'!$E$17,'Mode Emploi'!$E$18,'Mode Emploi'!$E$19,'Mode Emploi'!$E$20,),\"\")","v":""},4.3478260869565216E-2,""]
["cr 18","Le consultant a une responsabilité sociale d’une gouvernance de projet incluant la transparence.","Choix de \nVÉRACITÉ","",{"$f":"CHOOSE(I30,\"Libellé du critère quand il sera choisi\",'Mode Emploi'!$B$17,'Mode Emploi'!$B$18,'Mode Emploi'!$B$19,'Mode Emploi'!$B$20,,)","v":"Libellé du critère quand il sera choisi"},null,18,"Choix de \rVÉRACITÉ",{"$f":"IFERROR((VLOOKUP(C30,'Mode Emploi'!$M$16:$N$20,2)),\"\")","v":1},{"$f":"IFERROR(CHOOSE(I30,\"\",'Mode Emploi'!$E$17,'Mode Emploi'!$E$18,'Mode Emploi'!$E$19,'Mode Emploi'!$E$20,),\"\")","v":""},4.3478260869565216E-2,""]
["cr 19","Le consultant a une responsabilité sociale du respect des normes ou principes qui sont documentés par les organismes pertinents.","Choix de \nVÉRACITÉ","",{"$f":"CHOOSE(I31,\"Libellé du critère quand il sera choisi\",'Mode Emploi'!$B$17,'Mode Emploi'!$B$18,'Mode Emploi'!$B$19,'Mode Emploi'!$B$20,,)","v":"Libellé du critère quand il sera choisi"},null,19,"Choix de \rVÉRACITÉ",{"$f":"IFERROR((VLOOKUP(C31,'Mode Emploi'!$M$16:$N$20,2)),\"\")","v":1},{"$f":"IFERROR(CHOOSE(I31,\"\",'Mode Emploi'!$E$17,'Mode Emploi'!$E$18,'Mode Emploi'!$E$19,'Mode Emploi'!$E$20,),\"\")","v":""},4.3478260869565216E-2,""]
["cr 20","Le consultant évalue et atténue en performance les risques liés à la mission pour la santé et la sécurité des consultants et des autres parties prenantes pertinentes.","Choix de \nVÉRACITÉ","",{"$f":"CHOOSE(I32,\"Libellé du critère quand il sera choisi\",'Mode Emploi'!$B$17,'Mode Emploi'!$B$18,'Mode Emploi'!$B$19,'Mode Emploi'!$B$20,,)","v":"Libellé du critère quand il sera choisi"},null,20,"Choix de \rVÉRACITÉ",{"$f":"IFERROR((VLOOKUP(C32,'Mode Emploi'!$M$16:$N$20,2)),\"\")","v":1},{"$f":"IFERROR(CHOOSE(I32,\"\",'Mode Emploi'!$E$17,'Mode Emploi'!$E$18,'Mode Emploi'!$E$19,'Mode Emploi'!$E$20,),\"\")","v":""},4.3478260869565216E-2,""]
["cr 21","Le consultant coordonne et implique les ressources nécessaires pour réduire au minimum, surveiller et contrôler la probabilité et les conséquences d'événements imprévus.","Choix de \nVÉRACITÉ","",{"$f":"CHOOSE(I33,\"Libellé du critère quand il sera choisi\",'Mode Emploi'!$B$17,'Mode Emploi'!$B$18,'Mode Emploi'!$B$19,'Mode Emploi'!$B$20,,)","v":"Libellé du critère quand il sera choisi"},null,21,"Choix de \rVÉRACITÉ",{"$f":"IFERROR((VLOOKUP(C33,'Mode Emploi'!$M$16:$N$20,2)),\"\")","v":1},{"$f":"IFERROR(CHOOSE(I33,\"\",'Mode Emploi'!$E$17,'Mode Emploi'!$E$18,'Mode Emploi'!$E$19,'Mode Emploi'!$E$20,),\"\")","v":""},4.3478260869565216E-2,""]
["cr 22","Le consultant prend en considération les risques commerciaux et les risques liés au projet.","Choix de \nVÉRACITÉ","",{"$f":"CHOOSE(I34,\"Libellé du critère quand il sera choisi\",'Mode Emploi'!$B$17,'Mode Emploi'!$B$18,'Mode Emploi'!$B$19,'Mode Emploi'!$B$20,,)","v":"Libellé du critère quand il sera choisi"},null,22,"Choix de \rVÉRACITÉ",{"$f":"IFERROR((VLOOKUP(C34,'Mode Emploi'!$M$16:$N$20,2)),\"\")","v":1},{"$f":"IFERROR(CHOOSE(I34,\"\",'Mode Emploi'!$E$17,'Mode Emploi'!$E$18,'Mode Emploi'!$E$19,'Mode Emploi'!$E$20,),\"\")","v":""},4.3478260869565216E-2,""]
["cr 23","Le consultant intègre la méthode de management du risque et de la qualité dans la phase de proposition.","Choix de \nVÉRACITÉ","",{"$f":"CHOOSE(I35,\"Libellé du critère quand il sera choisi\",'Mode Emploi'!$B$17,'Mode Emploi'!$B$18,'Mode Emploi'!$B$19,'Mode Emploi'!$B$20,,)","v":"Libellé du critère quand il sera choisi"},null,23,{"$f":"C35","v":"Choix de \rVÉRACITÉ"},{"$f":"IFERROR((VLOOKUP(C35,'Mode Emploi'!$M$16:$N$20,2)),\"\")","v":1},{"$f":"IFERROR(CHOOSE(I35,\"\",'Mode Emploi'!$E$17,'Mode Emploi'!$E$18,'Mode Emploi'!$E$19,'Mode Emploi'!$E$20,),\"\")","v":""},4.3478260869565216E-2,""]
["4.4","Evaluation et amélioration continues",{"$f":"M36","v":"Insuffisant"},{"$f":"L36","v":0},{"$f":"IFERROR(IF(D36<='Mode Emploi'!$G$17,'Mode Emploi'!$I$17,IF(D36<='Mode Emploi'!$G$18,'Mode Emploi'!$I$18,IF(D36<='Mode Emploi'!$G$19,'Mode Emploi'!$I$19,'Mode Emploi'!$I$20))),\"\")","v":"Conformité de niveau 1 : Il est nécessaire de formaliser les activités réalisées."},null,null,"Sous-Article",null,"vérifier si Somme = 1 =>  ",{"$f":"SUM(K37:K39)","v":1},{"$f":"IFERROR(SUM(L37:L39),\"\")","v":0},{"$f":"IFERROR(IF(L36<='Mode Emploi'!$G$17,'Mode Emploi'!$H$17,IF(L36<='Mode Emploi'!$G$18,'Mode Emploi'!$H$18,IF(L36<='Mode Emploi'!$G$19,'Mode Emploi'!$H$19,'Mode Emploi'!$H$20))),\"\")","v":"Insuffisant"},{"$f":"1/COUNTA($M$12:$M$41)","v":0.33333333333333331},{"$f":"N36*L36","v":0}]
["cr 24","Le consultant met en place un processus structuré d’évaluation continue permettant la mémorisation et l'évaluation des résultats de la mission.","Choix de \nVÉRACITÉ",{"$f":"J37","v":""},{"$f":"CHOOSE(I37,\"Libellé du critère quand il sera choisi\",'Mode Emploi'!$B$17,'Mode Emploi'!$B$18,'Mode Emploi'!$B$19,'Mode Emploi'!$B$20,,)","v":"Libellé du critère quand il sera choisi"},null,{"$f":"G35+1","v":24},{"$f":"C37","v":"Choix de \rVÉRACITÉ"},{"$f":"IFERROR((VLOOKUP(C37,'Mode Emploi'!$M$16:$N$20,2)),\"\")","v":1},{"$f":"IFERROR(CHOOSE(I37,\"\",'Mode Emploi'!$E$17,'Mode Emploi'!$E$18,'Mode Emploi'!$E$19,'Mode Emploi'!$E$20,),\"\")","v":""},{"$f":"1/COUNTA($B$37:$B$39)","v":0.33333333333333331},{"$f":"IFERROR(J37*K37,\"\")","v":""}]
["cr 25","L’efficacité de la mission est évaluée en fonction des critères d'évaluation, de la politique et de la stratégie figurants dans l'accord.","Choix de \nVÉRACITÉ",{"$f":"J38","v":""},{"$f":"CHOOSE(I38,\"Libellé du critère quand il sera choisi\",'Mode Emploi'!$B$17,'Mode Emploi'!$B$18,'Mode Emploi'!$B$19,'Mode Emploi'!$B$20,,)","v":"Libellé du critère quand il sera choisi"},null,{"$f":"G37+1","v":25},{"$f":"C38","v":"Choix de \rVÉRACITÉ"},{"$f":"IFERROR((VLOOKUP(C38,'Mode Emploi'!$M$16:$N$20,2)),\"\")","v":1},{"$f":"IFERROR(CHOOSE(I38,\"\",'Mode Emploi'!$E$17,'Mode Emploi'!$E$18,'Mode Emploi'!$E$19,'Mode Emploi'!$E$20,),\"\")","v":""},{"$f":"1/COUNTA($B$37:$B$39)","v":0.33333333333333331},{"$f":"IFERROR(J38*K38,\"\")","v":""}]
["cr 26","Le consultant dispose d'un processus permettant un retour d'expérience du travail qu'il entreprend.","Choix de \nVÉRACITÉ",{"$f":"J39","v":""},{"$f":"CHOOSE(I39,\"Libellé du critère quand il sera choisi\",'Mode Emploi'!$B$17,'Mode Emploi'!$B$18,'Mode Emploi'!$B$19,'Mode Emploi'!$B$20,,)","v":"Libellé du critère quand il sera choisi"},null,{"$f":"G38+1","v":26},{"$f":"C39","v":"Choix de \rVÉRACITÉ"},{"$f":"IFERROR((VLOOKUP(C39,'Mode Emploi'!$M$16:$N$20,2)),\"\")","v":1},{"$f":"IFERROR(CHOOSE(I39,\"\",'Mode Emploi'!$E$17,'Mode Emploi'!$E$18,'Mode Emploi'!$E$19,'Mode Emploi'!$E$20,),\"\")","v":""},{"$f":"1/COUNTA($B$37:$B$39)","v":0.33333333333333331},{"$f":"IFERROR(J39*K39,\"\")","v":""}]
["4.5","Réclamation et litiges",{"$f":"M40","v":"Insuffisant"},{"$f":"L40","v":0},{"$f":"IFERROR(IF(D40<='Mode Emploi'!$G$17,'Mode Emploi'!$I$17,IF(D40<='Mode Emploi'!$G$18,'Mode Emploi'!$I$18,IF(D40<='Mode Emploi'!$G$19,'Mode Emploi'!$I$19,'Mode Emploi'!$I$20))),\"\")","v":"Conformité de niveau 1 : Il est nécessaire de formaliser les activités réalisées."},null,null,"Sous-Article",null,"vérifier si Somme = 1 =>  ",{"$f":"SUM(K41)","v":1},{"$f":"IFERROR(SUM(L41:L41),\"\")","v":0},{"$f":"IFERROR(IF(L40<='Mode Emploi'!$G$17,'Mode Emploi'!$H$17,IF(L40<='Mode Emploi'!$G$18,'Mode Emploi'!$H$18,IF(L40<='Mode Emploi'!$G$19,'Mode Emploi'!$H$19,'Mode Emploi'!$H$20))),\"\")","v":"Insuffisant"},{"$f":"1/COUNTA($M$12:$M$41)","v":0.33333333333333331},{"$f":"N40*L40","v":0}]
["cr 27","Le consultant dispose d’un processus communiqué clairement au client pour traiter les réclamations et les litiges ","Choix de \nVÉRACITÉ",{"$f":"J41","v":""},{"$f":"CHOOSE(I41,\"Libellé du critère quand il sera choisi\",'Mode Emploi'!$B$17,'Mode Emploi'!$B$18,'Mode Emploi'!$B$19,'Mode Emploi'!$B$20,,)","v":"Libellé du critère quand il sera choisi"},null,{"$f":"G39+1","v":27},{"$f":"C41","v":"Choix de \rVÉRACITÉ"},{"$f":"IFERROR((VLOOKUP(C41,'Mode Emploi'!$M$16:$N$20,2)),\"\")","v":1},{"$f":"IFERROR(CHOOSE(I41,\"\",'Mode Emploi'!$E$17,'Mode Emploi'!$E$18,'Mode Emploi'!$E$19,'Mode Emploi'!$E$20,),\"\")","v":""},{"$f":"1/COUNTA($B$41)","v":1},{"$f":"IFERROR(J41*K41,\"\")","v":""}]
["Art. 5","Proposition",{"$f":"P42","v":"Insuffisant"},{"$f":"O42","v":0},{"$f":"IFERROR(IF(D42<='Mode Emploi'!$G$17,'Mode Emploi'!$I$17,IF(D42<='Mode Emploi'!$G$18,'Mode Emploi'!$I$18,IF(D42<='Mode Emploi'!$G$19,'Mode Emploi'!$I$19,'Mode Emploi'!$I$20))),\"\")","v":"Conformité de niveau 1 : Il est nécessaire de formaliser les activités réalisées."},null,null,"Article",null,null,null,null,"vérifier si Somme = 1 =>  ",{"$f":"SUM(N43:N52)","v":1},{"$f":"IFERROR(SUM(O43:O52),\"\")","v":0},{"$f":"IFERROR(IF(O42<='Mode Emploi'!$G$17,'Mode Emploi'!$H$17,IF(O42<='Mode Emploi'!$G$18,'Mode Emploi'!$H$18,IF(O42<='Mode Emploi'!$G$19,'Mode Emploi'!$H$19,'Mode Emploi'!$H$20))),\"\")","v":"Insuffisant"},{"$f":"1/7","v":0.14285714285714285},{"$f":"O42*Q42","v":0}]
["5.1","Généralités",{"$f":"M43","v":"Insuffisant"},{"$f":"L43","v":0},{"$f":"IFERROR(IF(D43<='Mode Emploi'!$G$17,'Mode Emploi'!$I$17,IF(D43<='Mode Emploi'!$G$18,'Mode Emploi'!$I$18,IF(D43<='Mode Emploi'!$G$19,'Mode Emploi'!$I$19,'Mode Emploi'!$I$20))),\"\")","v":"Conformité de niveau 1 : Il est nécessaire de formaliser les activités réalisées."},null,null,"Sous-Article",null,"vérifier si Somme = 1 =>  ",{"$f":"SUM(K44:K48)","v":1},{"$f":"IFERROR(SUM(L44:L48),\"\")","v":0},{"$f":"IFERROR(IF(L43<='Mode Emploi'!$G$17,'Mode Emploi'!$H$17,IF(L43<='Mode Emploi'!$G$18,'Mode Emploi'!$H$18,IF(L43<='Mode Emploi'!$G$19,'Mode Emploi'!$H$19,'Mode Emploi'!$H$20))),\"\")","v":"Insuffisant"},{"$f":"1/COUNTA($M$43:$M$52)","v":0.33333333333333331},{"$f":"N43*L43","v":0}]
["cr 28","L’analyse de la situation existante est réalisée par le client et le consultant.","Choix de \nVÉRACITÉ",{"$f":"J44","v":""},{"$f":"CHOOSE(I44,\"Libellé du critère quand il sera choisi\",'Mode Emploi'!$B$17,'Mode Emploi'!$B$18,'Mode Emploi'!$B$19,'Mode Emploi'!$B$20,,)","v":"Libellé du critère quand il sera choisi"},null,{"$f":"G41+1","v":28},{"$f":"C44","v":"Choix de \rVÉRACITÉ"},{"$f":"IFERROR((VLOOKUP(C44,'Mode Emploi'!$M$16:$N$20,2)),\"\")","v":1},{"$f":"IFERROR(CHOOSE(I44,\"\",'Mode Emploi'!$E$17,'Mode Emploi'!$E$18,'Mode Emploi'!$E$19,'Mode Emploi'!$E$20,),\"\")","v":""},{"$f":"1/COUNTA($B$44:$B$48)","v":0.2},{"$f":"IFERROR(J44*K44,\"\")","v":""}]
["cr 29","L’identification des besoins du client est réalisée par le client et le consultant.","Choix de \nVÉRACITÉ",{"$f":"J45","v":""},{"$f":"CHOOSE(I45,\"Libellé du critère quand il sera choisi\",'Mode Emploi'!$B$17,'Mode Emploi'!$B$18,'Mode Emploi'!$B$19,'Mode Emploi'!$B$20,,)","v":"Libellé du critère quand il sera choisi"},null,{"$f":"G44+1","v":29},{"$f":"C45","v":"Choix de \rVÉRACITÉ"},{"$f":"IFERROR((VLOOKUP(C45,'Mode Emploi'!$M$16:$N$20,2)),\"\")","v":1},{"$f":"IFERROR(CHOOSE(I45,\"\",'Mode Emploi'!$E$17,'Mode Emploi'!$E$18,'Mode Emploi'!$E$19,'Mode Emploi'!$E$20,),\"\")","v":""},{"$f":"1/COUNTA($B$44:$B$48)","v":0.2},{"$f":"IFERROR(J45*K45,\"\")","v":""}]
["cr 30","La sélection du fournisseur est réalisée par le client et le consultant.","Choix de \nVÉRACITÉ",{"$f":"J46","v":""},{"$f":"CHOOSE(I46,\"Libellé du critère quand il sera choisi\",'Mode Emploi'!$B$17,'Mode Emploi'!$B$18,'Mode Emploi'!$B$19,'Mode Emploi'!$B$20,,)","v":"Libellé du critère quand il sera choisi"},null,{"$f":"G45+1","v":30},{"$f":"C46","v":"Choix de \rVÉRACITÉ"},{"$f":"IFERROR((VLOOKUP(C46,'Mode Emploi'!$M$16:$N$20,2)),\"\")","v":1},{"$f":"IFERROR(CHOOSE(I46,\"\",'Mode Emploi'!$E$17,'Mode Emploi'!$E$18,'Mode Emploi'!$E$19,'Mode Emploi'!$E$20,),\"\")","v":""},{"$f":"1/COUNTA($B$44:$B$48)","v":0.2},{"$f":"IFERROR(J46*K46,\"\")","v":""}]
["cr 31","La définition des spécifications est réalisée par le client et le consultant.","Choix de \nVÉRACITÉ",{"$f":"J47","v":""},{"$f":"CHOOSE(I47,\"Libellé du critère quand il sera choisi\",'Mode Emploi'!$B$17,'Mode Emploi'!$B$18,'Mode Emploi'!$B$19,'Mode Emploi'!$B$20,,)","v":"Libellé du critère quand il sera choisi"},null,{"$f":"G46+1","v":31},{"$f":"C47","v":"Choix de \rVÉRACITÉ"},{"$f":"IFERROR((VLOOKUP(C47,'Mode Emploi'!$M$16:$N$20,2)),\"\")","v":1},{"$f":"IFERROR(CHOOSE(I47,\"\",'Mode Emploi'!$E$17,'Mode Emploi'!$E$18,'Mode Emploi'!$E$19,'Mode Emploi'!$E$20,),\"\")","v":""},{"$f":"1/COUNTA($B$44:$B$48)","v":0.2},{"$f":"IFERROR(J47*K47,\"\")","v":""}]
["cr 32","La négociation et l’accord sont réalisés par le client et le consultant.","Choix de \nVÉRACITÉ",{"$f":"J48","v":""},{"$f":"CHOOSE(I48,\"Libellé du critère quand il sera choisi\",'Mode Emploi'!$B$17,'Mode Emploi'!$B$18,'Mode Emploi'!$B$19,'Mode Emploi'!$B$20,,)","v":"Libellé du critère quand il sera choisi"},null,{"$f":"G47+1","v":32},{"$f":"C48","v":"Choix de \rVÉRACITÉ"},{"$f":"IFERROR((VLOOKUP(C48,'Mode Emploi'!$M$16:$N$20,2)),\"\")","v":1},{"$f":"IFERROR(CHOOSE(I48,\"\",'Mode Emploi'!$E$17,'Mode Emploi'!$E$18,'Mode Emploi'!$E$19,'Mode Emploi'!$E$20,),\"\")","v":""},{"$f":"1/COUNTA($B$44:$B$48)","v":0.2},{"$f":"IFERROR(J48*K48,\"\")","v":""}]
["5.2","Objectifs",{"$f":"M49","v":"Insuffisant"},{"$f":"L49","v":0},{"$f":"IFERROR(IF(D49<='Mode Emploi'!$G$17,'Mode Emploi'!$I$17,IF(D49<='Mode Emploi'!$G$18,'Mode Emploi'!$I$18,IF(D49<='Mode Emploi'!$G$19,'Mode Emploi'!$I$19,'Mode Emploi'!$I$20))),\"\")","v":"Conformité de niveau 1 : Il est nécessaire de formaliser les activités réalisées."},null,null,"Sous-Article",null,"vérifier si Somme = 1 =>  ",{"$f":"SUM(K50:K50)","v":1},{"$f":"IFERROR(SUM(L50:L50),\"\")","v":0},{"$f":"IFERROR(IF(L49<='Mode Emploi'!$G$17,'Mode Emploi'!$H$17,IF(L49<='Mode Emploi'!$G$18,'Mode Emploi'!$H$18,IF(L49<='Mode Emploi'!$G$19,'Mode Emploi'!$H$19,'Mode Emploi'!$H$20))),\"\")","v":"Insuffisant"},{"$f":"1/COUNTA($M$43:$M$52)","v":0.33333333333333331},{"$f":"N49*L49","v":0}]
["cr 33","L’accord est conclu par le consultant que s’il protège les intérêts du client et du consultant.","Choix de \nVÉRACITÉ",{"$f":"J50","v":""},{"$f":"CHOOSE(I50,\"Libellé du critère quand il sera choisi\",'Mode Emploi'!$B$17,'Mode Emploi'!$B$18,'Mode Emploi'!$B$19,'Mode Emploi'!$B$20,,)","v":"Libellé du critère quand il sera choisi"},null,{"$f":"G48+1","v":33},{"$f":"C50","v":"Choix de \rVÉRACITÉ"},{"$f":"IFERROR((VLOOKUP(C50,'Mode Emploi'!$M$16:$N$20,2)),\"\")","v":1},{"$f":"IFERROR(CHOOSE(I50,\"\",'Mode Emploi'!$E$17,'Mode Emploi'!$E$18,'Mode Emploi'!$E$19,'Mode Emploi'!$E$20,),\"\")","v":""},{"$f":"1/COUNTA($B$50:$B$50)","v":1},{"$f":"IFERROR(J50*K50,\"\")","v":""}]
["5.3","Données d’entrée",{"$f":"M51","v":"Insuffisant"},{"$f":"L51","v":0},{"$f":"IFERROR(IF(D51<='Mode Emploi'!$G$17,'Mode Emploi'!$I$17,IF(D51<='Mode Emploi'!$G$18,'Mode Emploi'!$I$18,IF(D51<='Mode Emploi'!$G$19,'Mode Emploi'!$I$19,'Mode Emploi'!$I$20))),\"\")","v":"Conformité de niveau 1 : Il est nécessaire de formaliser les activités réalisées."},null,null,"Sous-Article",null,"vérifier si Somme = 1 =>  ",{"$f":"SUM(K52:K52)","v":1},{"$f":"IFERROR(SUM(L52:L52),\"\")","v":0},{"$f":"IFERROR(IF(L51<='Mode Emploi'!$G$17,'Mode Emploi'!$H$17,IF(L51<='Mode Emploi'!$G$18,'Mode Emploi'!$H$18,IF(L51<='Mode Emploi'!$G$19,'Mode Emploi'!$H$19,'Mode Emploi'!$H$20))),\"\")","v":"Insuffisant"},{"$f":"1/COUNTA($M$43:$M$52)","v":0.33333333333333331},{"$f":"N51*L51","v":0}]
["cr 34","Les données d’entrée comprennent : les besoins perçus, les attentes et les souhaits du client, les contraintes et les risques potentiels inhérents à la mission et les éventuels changements.","Choix de \nVÉRACITÉ",{"$f":"J52","v":""},{"$f":"CHOOSE(I52,\"Libellé du critère quand il sera choisi\",'Mode Emploi'!$B$17,'Mode Emploi'!$B$18,'Mode Emploi'!$B$19,'Mode Emploi'!$B$20,,)","v":"Libellé du critère quand il sera choisi"},null,{"$f":"G50+1","v":34},{"$f":"C52","v":"Choix de \rVÉRACITÉ"},{"$f":"IFERROR((VLOOKUP(C52,'Mode Emploi'!$M$16:$N$20,2)),\"\")","v":1},{"$f":"IFERROR(CHOOSE(I52,\"\",'Mode Emploi'!$E$17,'Mode Emploi'!$E$18,'Mode Emploi'!$E$19,'Mode Emploi'!$E$20,),\"\")","v":""},{"$f":"1/COUNTA($B$52:$B$52)","v":1},{"$f":"IFERROR(J52*K52,\"\")","v":""}]
["5.4","Résultats ",{"$f":"M53","v":"Insuffisant"},{"$f":"L53","v":0},{"$f":"IFERROR(IF(D53<='Mode Emploi'!$G$17,'Mode Emploi'!$I$17,IF(D53<='Mode Emploi'!$G$18,'Mode Emploi'!$I$18,IF(D53<='Mode Emploi'!$G$19,'Mode Emploi'!$I$19,'Mode Emploi'!$I$20))),\"\")","v":"Conformité de niveau 1 : Il est nécessaire de formaliser les activités réalisées."},null,null,"Sous-Article",null,"vérifier si Somme = 1 =>  ",{"$f":"SUM(K54:K64)","v":1.0000000000000002},{"$f":"IFERROR(SUM(L54:L64),\"\")","v":0},{"$f":"IFERROR(IF(L53<='Mode Emploi'!$G$17,'Mode Emploi'!$H$17,IF(L53<='Mode Emploi'!$G$18,'Mode Emploi'!$H$18,IF(L53<='Mode Emploi'!$G$19,'Mode Emploi'!$H$19,'Mode Emploi'!$H$20))),\"\")","v":"Insuffisant"},{"$f":"1/COUNTA($M$43:$M$52)","v":0.33333333333333331},{"$f":"N53*L53","v":0}]
["cr 35","L’accord détermine les services et les livrables à fournir et définit les droits et obligations de chacune des parties.","Choix de \nVÉRACITÉ",{"$f":"J54","v":""},{"$f":"CHOOSE(I54,\"Libellé du critère quand il sera choisi\",'Mode Emploi'!$B$17,'Mode Emploi'!$B$18,'Mode Emploi'!$B$19,'Mode Emploi'!$B$20,,)","v":"Libellé du critère quand il sera choisi"},null,{"$f":"G52+1","v":35},{"$f":"C54","v":"Choix de \rVÉRACITÉ"},{"$f":"IFERROR((VLOOKUP(C54,'Mode Emploi'!$M$16:$N$20,2)),\"\")","v":1},{"$f":"IFERROR(CHOOSE(I54,\"\",'Mode Emploi'!$E$17,'Mode Emploi'!$E$18,'Mode Emploi'!$E$19,'Mode Emploi'!$E$20,),\"\")","v":""},{"$f":"1/COUNTA($B$54:$B$64)","v":9.0909090909090912E-2},{"$f":"IFERROR(J54*K54,\"\")","v":""}]
["cr 36","La proposition du consultant au client inclut : le contexte, les services et les livrables, la méthode et le plan de travail, les rôles et les responsabilités, ainsi que les conditions contractuelles.","Choix de \nVÉRACITÉ",{"$f":"J55","v":""},{"$f":"CHOOSE(I55,\"Libellé du critère quand il sera choisi\",'Mode Emploi'!$B$17,'Mode Emploi'!$B$18,'Mode Emploi'!$B$19,'Mode Emploi'!$B$20,,)","v":"Libellé du critère quand il sera choisi"},null,{"$f":"G54+1","v":36},{"$f":"C55","v":"Choix de \rVÉRACITÉ"},{"$f":"IFERROR((VLOOKUP(C55,'Mode Emploi'!$M$16:$N$20,2)),\"\")","v":1},{"$f":"IFERROR(CHOOSE(I55,\"\",'Mode Emploi'!$E$17,'Mode Emploi'!$E$18,'Mode Emploi'!$E$19,'Mode Emploi'!$E$20,),\"\")","v":""},9.0909090909090912E-2,{"$f":"IFERROR(J55*K55,\"\")","v":""}]
["cr 37","L’accord contient des faits pertinents (des descriptions précises, des objectifs du client, les raisons nécessitant la mise en place de la mission, les hypothèses et leurs conséquences, le périmètre et les limites de la mission).","Choix de \nVÉRACITÉ","",{"$f":"CHOOSE(I56,\"Libellé du critère quand il sera choisi\",'Mode Emploi'!$B$17,'Mode Emploi'!$B$18,'Mode Emploi'!$B$19,'Mode Emploi'!$B$20,,)","v":"Libellé du critère quand il sera choisi"},null,{"$f":"G55+1","v":37},"Choix de \rVÉRACITÉ",{"$f":"IFERROR((VLOOKUP(C56,'Mode Emploi'!$M$16:$N$20,2)),\"\")","v":1},{"$f":"IFERROR(CHOOSE(I56,\"\",'Mode Emploi'!$E$17,'Mode Emploi'!$E$18,'Mode Emploi'!$E$19,'Mode Emploi'!$E$20,),\"\")","v":""},9.0909090909090912E-2,""]
["cr 38","Le client comprend la nécessité de partager toutes les informations pertinentes et significatives.","Choix de \nVÉRACITÉ","",{"$f":"CHOOSE(I57,\"Libellé du critère quand il sera choisi\",'Mode Emploi'!$B$17,'Mode Emploi'!$B$18,'Mode Emploi'!$B$19,'Mode Emploi'!$B$20,,)","v":"Libellé du critère quand il sera choisi"},null,38,"Choix de \rVÉRACITÉ",{"$f":"IFERROR((VLOOKUP(C57,'Mode Emploi'!$M$16:$N$20,2)),\"\")","v":1},{"$f":"IFERROR(CHOOSE(I57,\"\",'Mode Emploi'!$E$17,'Mode Emploi'!$E$18,'Mode Emploi'!$E$19,'Mode Emploi'!$E$20,),\"\")","v":""},9.0909090909090912E-2,""]
["cr 39","L’accord spécifie les contraintes et les risques associés à la mission dans la mesure où ils sont connus et identifiés.","Choix de \nVÉRACITÉ","",{"$f":"CHOOSE(I58,\"Libellé du critère quand il sera choisi\",'Mode Emploi'!$B$17,'Mode Emploi'!$B$18,'Mode Emploi'!$B$19,'Mode Emploi'!$B$20,,)","v":"Libellé du critère quand il sera choisi"},null,39,"Choix de \rVÉRACITÉ",{"$f":"IFERROR((VLOOKUP(C58,'Mode Emploi'!$M$16:$N$20,2)),\"\")","v":1},{"$f":"IFERROR(CHOOSE(I58,\"\",'Mode Emploi'!$E$17,'Mode Emploi'!$E$18,'Mode Emploi'!$E$19,'Mode Emploi'!$E$20,),\"\")","v":""},9.0909090909090912E-2,""]
["cr 40","L’accord comprend une description des services à fournir, des résultats escomptés, des livrables de la mission et des conditions et du processus de réception formelle.","Choix de \nVÉRACITÉ","",{"$f":"CHOOSE(I59,\"Libellé du critère quand il sera choisi\",'Mode Emploi'!$B$17,'Mode Emploi'!$B$18,'Mode Emploi'!$B$19,'Mode Emploi'!$B$20,,)","v":"Libellé du critère quand il sera choisi"},null,40,"Choix de \rVÉRACITÉ",{"$f":"IFERROR((VLOOKUP(C59,'Mode Emploi'!$M$16:$N$20,2)),\"\")","v":1},{"$f":"IFERROR(CHOOSE(I59,\"\",'Mode Emploi'!$E$17,'Mode Emploi'!$E$18,'Mode Emploi'!$E$19,'Mode Emploi'!$E$20,),\"\")","v":""},9.0909090909090912E-2,""]
["cr 41","L’accord comporte un plan de travail. ","Choix de \nVÉRACITÉ","",{"$f":"CHOOSE(I60,\"Libellé du critère quand il sera choisi\",'Mode Emploi'!$B$17,'Mode Emploi'!$B$18,'Mode Emploi'!$B$19,'Mode Emploi'!$B$20,,)","v":"Libellé du critère quand il sera choisi"},null,41,"Choix de \rVÉRACITÉ",{"$f":"IFERROR((VLOOKUP(C60,'Mode Emploi'!$M$16:$N$20,2)),\"\")","v":1},{"$f":"IFERROR(CHOOSE(I60,\"\",'Mode Emploi'!$E$17,'Mode Emploi'!$E$18,'Mode Emploi'!$E$19,'Mode Emploi'!$E$20,),\"\")","v":""},9.0909090909090912E-2,""]
["cr 42","L’accord définit les rôles, les responsabilités et toutes les ressources. ","Choix de \nVÉRACITÉ","",{"$f":"CHOOSE(I61,\"Libellé du critère quand il sera choisi\",'Mode Emploi'!$B$17,'Mode Emploi'!$B$18,'Mode Emploi'!$B$19,'Mode Emploi'!$B$20,,)","v":"Libellé du critère quand il sera choisi"},null,42,"Choix de \rVÉRACITÉ",{"$f":"IFERROR((VLOOKUP(C61,'Mode Emploi'!$M$16:$N$20,2)),\"\")","v":1},{"$f":"IFERROR(CHOOSE(I61,\"\",'Mode Emploi'!$E$17,'Mode Emploi'!$E$18,'Mode Emploi'!$E$19,'Mode Emploi'!$E$20,),\"\")","v":""},9.0909090909090912E-2,""]
["cr 43 ","L’accord spécifie les processus de prise de décision, de direction et de contrôle en incluant la désignation d’un animateur/responsable de projet.","Choix de \nVÉRACITÉ","",{"$f":"CHOOSE(I62,\"Libellé du critère quand il sera choisi\",'Mode Emploi'!$B$17,'Mode Emploi'!$B$18,'Mode Emploi'!$B$19,'Mode Emploi'!$B$20,,)","v":"Libellé du critère quand il sera choisi"},null,43,"Choix de \rVÉRACITÉ",{"$f":"IFERROR((VLOOKUP(C62,'Mode Emploi'!$M$16:$N$20,2)),\"\")","v":1},{"$f":"IFERROR(CHOOSE(I62,\"\",'Mode Emploi'!$E$17,'Mode Emploi'!$E$18,'Mode Emploi'!$E$19,'Mode Emploi'!$E$20,),\"\")","v":""},9.0909090909090912E-2,""]
["cr 44 ","L’accord définit la façon dont il sera procédé à l’évaluation.","Choix de \nVÉRACITÉ","",{"$f":"CHOOSE(I63,\"Libellé du critère quand il sera choisi\",'Mode Emploi'!$B$17,'Mode Emploi'!$B$18,'Mode Emploi'!$B$19,'Mode Emploi'!$B$20,,)","v":"Libellé du critère quand il sera choisi"},null,44,"Choix de \rVÉRACITÉ",{"$f":"IFERROR((VLOOKUP(C63,'Mode Emploi'!$M$16:$N$20,2)),\"\")","v":1},{"$f":"IFERROR(CHOOSE(I63,\"\",'Mode Emploi'!$E$17,'Mode Emploi'!$E$18,'Mode Emploi'!$E$19,'Mode Emploi'!$E$20,),\"\")","v":""},9.0909090909090912E-2,""]
["cr 45 ","L’accord précise les conditions générales relatives à la facturation.","Choix de \nVÉRACITÉ","",{"$f":"CHOOSE(I64,\"Libellé du critère quand il sera choisi\",'Mode Emploi'!$B$17,'Mode Emploi'!$B$18,'Mode Emploi'!$B$19,'Mode Emploi'!$B$20,,)","v":"Libellé du critère quand il sera choisi"},null,45,"Choix de \rVÉRACITÉ",{"$f":"IFERROR((VLOOKUP(C64,'Mode Emploi'!$M$16:$N$20,2)),\"\")","v":1},{"$f":"IFERROR(CHOOSE(I64,\"\",'Mode Emploi'!$E$17,'Mode Emploi'!$E$18,'Mode Emploi'!$E$19,'Mode Emploi'!$E$20,),\"\")","v":""},9.0909090909090912E-2,""]
["Art. 6","Réalisation",{"$f":"P65","v":"Insuffisant"},{"$f":"O65","v":0},{"$f":"IFERROR(IF(D65<='Mode Emploi'!$G$17,'Mode Emploi'!$I$17,IF(D65<='Mode Emploi'!$G$18,'Mode Emploi'!$I$18,IF(D65<='Mode Emploi'!$G$19,'Mode Emploi'!$I$19,'Mode Emploi'!$I$20))),\"\")","v":"Conformité de niveau 1 : Il est nécessaire de formaliser les activités réalisées."},null,null,"Article",null,null,null,null,"vérifier si Somme = 1 =>  ",{"$f":"SUM(N66:N75)","v":1},{"$f":"IFERROR(SUM(O66:O75),\"\")","v":0},{"$f":"IFERROR(IF(O65<='Mode Emploi'!$G$17,'Mode Emploi'!$H$17,IF(O65<='Mode Emploi'!$G$18,'Mode Emploi'!$H$18,IF(O65<='Mode Emploi'!$G$19,'Mode Emploi'!$H$19,'Mode Emploi'!$H$20))),\"\")","v":"Insuffisant"},{"$f":"1/7","v":0.14285714285714285},{"$f":"O65*Q65","v":0}]
["6.5","Contenu",{"$f":"M66","v":"Insuffisant"},{"$f":"L66","v":0},{"$f":"IFERROR(IF(D66<='Mode Emploi'!$G$17,'Mode Emploi'!$I$17,IF(D66<='Mode Emploi'!$G$18,'Mode Emploi'!$I$18,IF(D66<='Mode Emploi'!$G$19,'Mode Emploi'!$I$19,'Mode Emploi'!$I$20))),\"\")","v":"Conformité de niveau 1 : Il est nécessaire de formaliser les activités réalisées."},null,null,"Sous-Article",null,"vérifier si Somme = 1 =>  ",{"$f":"SUM(K67:K75)","v":1.0000000000000002},{"$f":"IFERROR(SUM(L67:L75),\"\")","v":0},{"$f":"IFERROR(IF(L66<='Mode Emploi'!$G$17,'Mode Emploi'!$H$17,IF(L66<='Mode Emploi'!$G$18,'Mode Emploi'!$H$18,IF(L66<='Mode Emploi'!$G$19,'Mode Emploi'!$H$19,'Mode Emploi'!$H$20))),\"\")","v":"Insuffisant"},{"$f":"1/COUNTA($M$66:$M$75)","v":1},{"$f":"N66*L66","v":0}]
["cr 47 ","La phase de réalisation intègre : l’ajustement du plan de travail convenu, la mise en oeuvre du plan de travail, le management et le suivi de la mission, les approbations et la réception formelle de la mission.","Choix de \nVÉRACITÉ",{"$f":"J67","v":""},{"$f":"CHOOSE(I67,\"Libellé du critère quand il sera choisi\",'Mode Emploi'!$B$17,'Mode Emploi'!$B$18,'Mode Emploi'!$B$19,'Mode Emploi'!$B$20,,)","v":"Libellé du critère quand il sera choisi"},null,{"$f":"G64+1","v":46},{"$f":"C67","v":"Choix de \rVÉRACITÉ"},{"$f":"IFERROR((VLOOKUP(C67,'Mode Emploi'!$M$16:$N$20,2)),\"\")","v":1},{"$f":"IFERROR(CHOOSE(I67,\"\",'Mode Emploi'!$E$17,'Mode Emploi'!$E$18,'Mode Emploi'!$E$19,'Mode Emploi'!$E$20,),\"\")","v":""},{"$f":"1/COUNTA($B$67:$B$75)","v":0.1111111111111111},{"$f":"IFERROR(J67*K67,\"\")","v":""}]
["cr 48","Le consultant implique le client dans la phase de réalisation et obtient son approbation sur le plan ajusté.","Choix de \nVÉRACITÉ",{"$f":"J68","v":""},{"$f":"CHOOSE(I68,\"Libellé du critère quand il sera choisi\",'Mode Emploi'!$B$17,'Mode Emploi'!$B$18,'Mode Emploi'!$B$19,'Mode Emploi'!$B$20,,)","v":"Libellé du critère quand il sera choisi"},null,{"$f":"G67+1","v":47},{"$f":"C68","v":"Choix de \rVÉRACITÉ"},{"$f":"IFERROR((VLOOKUP(C68,'Mode Emploi'!$M$16:$N$20,2)),\"\")","v":1},{"$f":"IFERROR(CHOOSE(I68,\"\",'Mode Emploi'!$E$17,'Mode Emploi'!$E$18,'Mode Emploi'!$E$19,'Mode Emploi'!$E$20,),\"\")","v":""},{"$f":"1/COUNTA($B$67:$B$75)","v":0.1111111111111111},{"$f":"IFERROR(J68*K68,\"\")","v":""}]
["cr 49","Les décisions finales relatives à la mission sont prises par le client.","Choix de \nVÉRACITÉ","",{"$f":"CHOOSE(I69,\"Libellé du critère quand il sera choisi\",'Mode Emploi'!$B$17,'Mode Emploi'!$B$18,'Mode Emploi'!$B$19,'Mode Emploi'!$B$20,,)","v":"Libellé du critère quand il sera choisi"},null,{"$f":"G68+1","v":48},{"$f":"C69","v":"Choix de \rVÉRACITÉ"},{"$f":"IFERROR((VLOOKUP(C69,'Mode Emploi'!$M$16:$N$20,2)),\"\")","v":1},{"$f":"IFERROR(CHOOSE(I69,\"\",'Mode Emploi'!$E$17,'Mode Emploi'!$E$18,'Mode Emploi'!$E$19,'Mode Emploi'!$E$20,),\"\")","v":""},0.1111111111111111,{"$f":"IFERROR(J69*K69,\"\")","v":""}]
["cr 50","Les litiges entre le client et le consultant sont traités conformément aux termes de l’accord.","Choix de \nVÉRACITÉ","",{"$f":"CHOOSE(I70,\"Libellé du critère quand il sera choisi\",'Mode Emploi'!$B$17,'Mode Emploi'!$B$18,'Mode Emploi'!$B$19,'Mode Emploi'!$B$20,,)","v":"Libellé du critère quand il sera choisi"},null,{"$f":"G69+1","v":49},{"$f":"C70","v":"Choix de \rVÉRACITÉ"},{"$f":"IFERROR((VLOOKUP(C70,'Mode Emploi'!$M$16:$N$20,2)),\"\")","v":1},{"$f":"IFERROR(CHOOSE(I70,\"\",'Mode Emploi'!$E$17,'Mode Emploi'!$E$18,'Mode Emploi'!$E$19,'Mode Emploi'!$E$20,),\"\")","v":""},0.1111111111111111,{"$f":"IFERROR(J70*K70,\"\")","v":""}]
["cr 51","Le consultant informe et renégocie l’accord avec le client s’il s’aperçoit que les missions ne pourront pas être atteintes conformément aux termes de l’accord.","Choix de \nVÉRACITÉ","",{"$f":"CHOOSE(I71,\"Libellé du critère quand il sera choisi\",'Mode Emploi'!$B$17,'Mode Emploi'!$B$18,'Mode Emploi'!$B$19,'Mode Emploi'!$B$20,,)","v":"Libellé du critère quand il sera choisi"},null,{"$f":"G70+1","v":50},{"$f":"C71","v":"Choix de \rVÉRACITÉ"},{"$f":"IFERROR((VLOOKUP(C71,'Mode Emploi'!$M$16:$N$20,2)),\"\")","v":1},{"$f":"IFERROR(CHOOSE(I71,\"\",'Mode Emploi'!$E$17,'Mode Emploi'!$E$18,'Mode Emploi'!$E$19,'Mode Emploi'!$E$20,),\"\")","v":""},0.1111111111111111,{"$f":"IFERROR(J71*K71,\"\")","v":""}]
["cr 52","Le consultant mène sa mission avec efficience et efficacité","Choix de \nVÉRACITÉ","",{"$f":"CHOOSE(I72,\"Libellé du critère quand il sera choisi\",'Mode Emploi'!$B$17,'Mode Emploi'!$B$18,'Mode Emploi'!$B$19,'Mode Emploi'!$B$20,,)","v":"Libellé du critère quand il sera choisi"},null,51,"Choix de \rVÉRACITÉ",{"$f":"IFERROR((VLOOKUP(C72,'Mode Emploi'!$M$16:$N$20,2)),\"\")","v":1},{"$f":"IFERROR(CHOOSE(I72,\"\",'Mode Emploi'!$E$17,'Mode Emploi'!$E$18,'Mode Emploi'!$E$19,'Mode Emploi'!$E$20,),\"\")","v":""},0.1111111111111111,""]
["cr 53","Les ressources engagées dans la mission sont rendues disponibles et gérées selon l’accord entre le consultant et le client.","Choix de \nVÉRACITÉ","",{"$f":"CHOOSE(I73,\"Libellé du critère quand il sera choisi\",'Mode Emploi'!$B$17,'Mode Emploi'!$B$18,'Mode Emploi'!$B$19,'Mode Emploi'!$B$20,,)","v":"Libellé du critère quand il sera choisi"},null,52,"Choix de \rVÉRACITÉ",{"$f":"IFERROR((VLOOKUP(C73,'Mode Emploi'!$M$16:$N$20,2)),\"\")","v":1},{"$f":"IFERROR(CHOOSE(I73,\"\",'Mode Emploi'!$E$17,'Mode Emploi'!$E$18,'Mode Emploi'!$E$19,'Mode Emploi'!$E$20,),\"\")","v":""},0.1111111111111111,""]
["cr 54","L’avancement de la mission est surveillé en fonction du plan de travail et de l’enregistrement.","Choix de \nVÉRACITÉ","",{"$f":"CHOOSE(I74,\"Libellé du critère quand il sera choisi\",'Mode Emploi'!$B$17,'Mode Emploi'!$B$18,'Mode Emploi'!$B$19,'Mode Emploi'!$B$20,,)","v":"Libellé du critère quand il sera choisi"},null,53,"Choix de \rVÉRACITÉ",{"$f":"IFERROR((VLOOKUP(C74,'Mode Emploi'!$M$16:$N$20,2)),\"\")","v":1},{"$f":"IFERROR(CHOOSE(I74,\"\",'Mode Emploi'!$E$17,'Mode Emploi'!$E$18,'Mode Emploi'!$E$19,'Mode Emploi'!$E$20,),\"\")","v":""},0.1111111111111111,""]
["cr 55","Le consultant dispose d’un système ou d’un processus de gestion des évolutions (pour traiter les écarts, les modifications du contexte, les changements dans l’environnement, dans les attentes et les changements chez le consultant).","Choix de \nVÉRACITÉ","",{"$f":"CHOOSE(I75,\"Libellé du critère quand il sera choisi\",'Mode Emploi'!$B$17,'Mode Emploi'!$B$18,'Mode Emploi'!$B$19,'Mode Emploi'!$B$20,,)","v":"Libellé du critère quand il sera choisi"},null,54,"Choix de \rVÉRACITÉ",{"$f":"IFERROR((VLOOKUP(C75,'Mode Emploi'!$M$16:$N$20,2)),\"\")","v":1},{"$f":"IFERROR(CHOOSE(I75,\"\",'Mode Emploi'!$E$17,'Mode Emploi'!$E$18,'Mode Emploi'!$E$19,'Mode Emploi'!$E$20,),\"\")","v":""},0.1111111111111111,""]
["Art. 7","Clôture",{"$f":"P76","v":"Insuffisant"},{"$f":"O76","v":0},{"$f":"IFERROR(IF(D76<='Mode Emploi'!$G$17,'Mode Emploi'!$I$17,IF(D76<='Mode Emploi'!$G$18,'Mode Emploi'!$I$18,IF(D76<='Mode Emploi'!$G$19,'Mode Emploi'!$I$19,'Mode Emploi'!$I$20))),\"\")","v":"Conformité de niveau 1 : Il est nécessaire de formaliser les activités réalisées."},null,null,"Article",null,null,null,null,"vérifier si Somme = 1 =>  ",{"$f":"SUM(N77:N91)","v":1},{"$f":"IFERROR(SUM(O77:O91),\"\")","v":0},{"$f":"IFERROR(IF(O76<='Mode Emploi'!$G$17,'Mode Emploi'!$H$17,IF(O76<='Mode Emploi'!$G$18,'Mode Emploi'!$H$18,IF(O76<='Mode Emploi'!$G$19,'Mode Emploi'!$H$19,'Mode Emploi'!$H$20))),\"\")","v":"Insuffisant"},{"$f":"1/7","v":0.14285714285714285},{"$f":"O76*Q76","v":0}]
["7.4","Résultats",{"$f":"M77","v":"Insuffisant"},{"$f":"L77","v":0},{"$f":"IFERROR(IF(D77<='Mode Emploi'!$G$17,'Mode Emploi'!$I$17,IF(D77<='Mode Emploi'!$G$18,'Mode Emploi'!$I$18,IF(D77<='Mode Emploi'!$G$19,'Mode Emploi'!$I$19,'Mode Emploi'!$I$20))),\"\")","v":"Conformité de niveau 1 : Il est nécessaire de formaliser les activités réalisées."},null,null,"Sous-Article",null,"vérifier si Somme = 1 =>  ",{"$f":"SUM(K78:K80)","v":1},{"$f":"IFERROR(SUM(L78:L80),\"\")","v":0},{"$f":"IFERROR(IF(L77<='Mode Emploi'!$G$17,'Mode Emploi'!$H$17,IF(L77<='Mode Emploi'!$G$18,'Mode Emploi'!$H$18,IF(L77<='Mode Emploi'!$G$19,'Mode Emploi'!$H$19,'Mode Emploi'!$H$20))),\"\")","v":"Insuffisant"},{"$f":"1/COUNTA($M$77:$M$91)","v":0.2},{"$f":"N77*L77","v":0}]
["cr 56 ","Toutes les parties sont libérés de leurs obligations dans l'accord.","Choix de \nVÉRACITÉ",{"$f":"J78","v":""},{"$f":"CHOOSE(I78,\"Libellé du critère quand il sera choisi\",'Mode Emploi'!$B$17,'Mode Emploi'!$B$18,'Mode Emploi'!$B$19,'Mode Emploi'!$B$20,,)","v":"Libellé du critère quand il sera choisi"},null,{"$f":"G75+1","v":55},{"$f":"C78","v":"Choix de \rVÉRACITÉ"},{"$f":"IFERROR((VLOOKUP(C78,'Mode Emploi'!$M$16:$N$20,2)),\"\")","v":1},{"$f":"IFERROR(CHOOSE(I78,\"\",'Mode Emploi'!$E$17,'Mode Emploi'!$E$18,'Mode Emploi'!$E$19,'Mode Emploi'!$E$20,),\"\")","v":""},{"$f":"1/COUNTA($B$78:$B$80)","v":0.33333333333333331},{"$f":"IFERROR(J78*K78,\"\")","v":""}]
["cr 57","Toutes les parties prenantes continuent à avoir une compréhension commune des obligations continues, en particulier le consultant et le client (par exemple, les garanties, la confidentialité, les droits intellectuels, les questions en suspens, etc.).","Choix de \nVÉRACITÉ","",{"$f":"CHOOSE(I79,\"Libellé du critère quand il sera choisi\",'Mode Emploi'!$B$17,'Mode Emploi'!$B$18,'Mode Emploi'!$B$19,'Mode Emploi'!$B$20,,)","v":"Libellé du critère quand il sera choisi"},null,{"$f":"G78+1","v":56},"Choix de \rVÉRACITÉ",{"$f":"IFERROR((VLOOKUP(C79,'Mode Emploi'!$M$16:$N$20,2)),\"\")","v":1},{"$f":"IFERROR(CHOOSE(I79,\"\",'Mode Emploi'!$E$17,'Mode Emploi'!$E$18,'Mode Emploi'!$E$19,'Mode Emploi'!$E$20,),\"\")","v":""},{"$f":"1/COUNTA($B$78:$B$80)","v":0.33333333333333331},""]
["cr 58","Toutes les parties prenantes parviennent à un accord financier concernant les factures, les dépenses.","Choix de \nVÉRACITÉ","",{"$f":"CHOOSE(I80,\"Libellé du critère quand il sera choisi\",'Mode Emploi'!$B$17,'Mode Emploi'!$B$18,'Mode Emploi'!$B$19,'Mode Emploi'!$B$20,,)","v":"Libellé du critère quand il sera choisi"},null,57,"Choix de \rVÉRACITÉ",{"$f":"IFERROR((VLOOKUP(C80,'Mode Emploi'!$M$16:$N$20,2)),\"\")","v":1},{"$f":"IFERROR(CHOOSE(I80,\"\",'Mode Emploi'!$E$17,'Mode Emploi'!$E$18,'Mode Emploi'!$E$19,'Mode Emploi'!$E$20,),\"\")","v":""},{"$f":"1/COUNTA($B$78:$B$80)","v":0.33333333333333331},""]
["7.5.1","Questions juridiques et contractuelles ",{"$f":"M81","v":"Insuffisant"},{"$f":"L81","v":0},{"$f":"IFERROR(IF(D81<='Mode Emploi'!$G$17,'Mode Emploi'!$I$17,IF(D81<='Mode Emploi'!$G$18,'Mode Emploi'!$I$18,IF(D81<='Mode Emploi'!$G$19,'Mode Emploi'!$I$19,'Mode Emploi'!$I$20))),\"\")","v":"Conformité de niveau 1 : Il est nécessaire de formaliser les activités réalisées."},null,null,"Sous-Article",null,"vérifier si Somme = 1 =>  ",{"$f":"SUM(K82:K82)","v":1},{"$f":"IFERROR(SUM(L82:L82),\"\")","v":0},{"$f":"IFERROR(IF(L81<='Mode Emploi'!$G$17,'Mode Emploi'!$H$17,IF(L81<='Mode Emploi'!$G$18,'Mode Emploi'!$H$18,IF(L81<='Mode Emploi'!$G$19,'Mode Emploi'!$H$19,'Mode Emploi'!$H$20))),\"\")","v":"Insuffisant"},{"$f":"1/COUNTA($M$77:$M$91)","v":0.2},{"$f":"N81*L81","v":0}]
["cr 59","Le consultant traite en temps opportun et de manière efficace toutes les questions juridiques et contractuelles conformément à l’accord.","Choix de \nVÉRACITÉ",{"$f":"J82","v":""},{"$f":"CHOOSE(I82,\"Libellé du critère quand il sera choisi\",'Mode Emploi'!$B$17,'Mode Emploi'!$B$18,'Mode Emploi'!$B$19,'Mode Emploi'!$B$20,,)","v":"Libellé du critère quand il sera choisi"},null,{"$f":"G80+1","v":58},{"$f":"C82","v":"Choix de \rVÉRACITÉ"},{"$f":"IFERROR((VLOOKUP(C82,'Mode Emploi'!$M$16:$N$20,2)),\"\")","v":1},{"$f":"IFERROR(CHOOSE(I82,\"\",'Mode Emploi'!$E$17,'Mode Emploi'!$E$18,'Mode Emploi'!$E$19,'Mode Emploi'!$E$20,),\"\")","v":""},{"$f":"1/COUNTA($B$82:$B$82)","v":1},{"$f":"IFERROR(J82*K82,\"\")","v":""}]
["7.5.2","Evaluation finale et améliorations ",{"$f":"M83","v":"Insuffisant"},{"$f":"L83","v":0},{"$f":"IFERROR(IF(D83<='Mode Emploi'!$G$17,'Mode Emploi'!$I$17,IF(D83<='Mode Emploi'!$G$18,'Mode Emploi'!$I$18,IF(D83<='Mode Emploi'!$G$19,'Mode Emploi'!$I$19,'Mode Emploi'!$I$20))),\"\")","v":"Conformité de niveau 1 : Il est nécessaire de formaliser les activités réalisées."},null,null,"Sous-Article",null,"vérifier si Somme = 1 =>  ",{"$f":"SUM(K84:K85)","v":1},{"$f":"IFERROR(SUM(L84:L85),\"\")","v":0},{"$f":"IFERROR(IF(L83<='Mode Emploi'!$G$17,'Mode Emploi'!$H$17,IF(L83<='Mode Emploi'!$G$18,'Mode Emploi'!$H$18,IF(L83<='Mode Emploi'!$G$19,'Mode Emploi'!$H$19,'Mode Emploi'!$H$20))),\"\")","v":"Insuffisant"},{"$f":"1/COUNTA($M$77:$M$91)","v":0.2},{"$f":"N83*L83","v":0}]
["cr 60","Le consultant dispose d’un processus permettant un retour d’expérience du travail entrepris dans un but d’amélioration.","Choix de \nVÉRACITÉ",{"$f":"J84","v":""},{"$f":"CHOOSE(I84,\"Libellé du critère quand il sera choisi\",'Mode Emploi'!$B$17,'Mode Emploi'!$B$18,'Mode Emploi'!$B$19,'Mode Emploi'!$B$20,,)","v":"Libellé du critère quand il sera choisi"},null,{"$f":"G82+1","v":59},{"$f":"C84","v":"Choix de \rVÉRACITÉ"},{"$f":"IFERROR((VLOOKUP(C84,'Mode Emploi'!$M$16:$N$20,2)),\"\")","v":1},{"$f":"IFERROR(CHOOSE(I84,\"\",'Mode Emploi'!$E$17,'Mode Emploi'!$E$18,'Mode Emploi'!$E$19,'Mode Emploi'!$E$20,),\"\")","v":""},{"$f":"1/COUNTA($B$84:$B$85)","v":0.5},{"$f":"IFERROR(J84*K84,\"\")","v":""}]
["cr 61","Le consultant dispose d’un processus systématique pour assurer que les points forts et les opportunités d’amélioration sont enregistrés et communiqués au personnel.","Choix de \nVÉRACITÉ",{"$f":"J85","v":""},{"$f":"CHOOSE(I85,\"Libellé du critère quand il sera choisi\",'Mode Emploi'!$B$17,'Mode Emploi'!$B$18,'Mode Emploi'!$B$19,'Mode Emploi'!$B$20,,)","v":"Libellé du critère quand il sera choisi"},null,{"$f":"G84+1","v":60},{"$f":"C85","v":"Choix de \rVÉRACITÉ"},{"$f":"IFERROR((VLOOKUP(C85,'Mode Emploi'!$M$16:$N$20,2)),\"\")","v":1},{"$f":"IFERROR(CHOOSE(I85,\"\",'Mode Emploi'!$E$17,'Mode Emploi'!$E$18,'Mode Emploi'!$E$19,'Mode Emploi'!$E$20,),\"\")","v":""},{"$f":"1/COUNTA($B$84:$B$85)","v":0.5},{"$f":"IFERROR(J85*K85,\"\")","v":""}]
["7.5.3","Questions administratives",{"$f":"M86","v":"Insuffisant"},{"$f":"L86","v":0},{"$f":"IFERROR(IF(D86<='Mode Emploi'!$G$17,'Mode Emploi'!$I$17,IF(D86<='Mode Emploi'!$G$18,'Mode Emploi'!$I$18,IF(D86<='Mode Emploi'!$G$19,'Mode Emploi'!$I$19,'Mode Emploi'!$I$20))),\"\")","v":"Conformité de niveau 1 : Il est nécessaire de formaliser les activités réalisées."},null,null,"Sous-Article",null,"vérifier si Somme = 1 =>  ",{"$f":"SUM(K87:K87)","v":1},{"$f":"IFERROR(SUM(L87:L87),\"\")","v":0},{"$f":"IFERROR(IF(L86<='Mode Emploi'!$G$17,'Mode Emploi'!$H$17,IF(L86<='Mode Emploi'!$G$18,'Mode Emploi'!$H$18,IF(L86<='Mode Emploi'!$G$19,'Mode Emploi'!$H$19,'Mode Emploi'!$H$20))),\"\")","v":"Insuffisant"},{"$f":"1/COUNTA($M$77:$M$91)","v":0.2},{"$f":"N86*L86","v":0}]
["cr 62","Le consultant dispose d’un processus efficace pour assurer que toutes les questions administratives sont traitées en temps et en heure.","Choix de \nVÉRACITÉ",{"$f":"J87","v":""},{"$f":"CHOOSE(I87,\"Libellé du critère quand il sera choisi\",'Mode Emploi'!$B$17,'Mode Emploi'!$B$18,'Mode Emploi'!$B$19,'Mode Emploi'!$B$20,,)","v":"Libellé du critère quand il sera choisi"},null,{"$f":"G85+1","v":61},{"$f":"C87","v":"Choix de \rVÉRACITÉ"},{"$f":"IFERROR((VLOOKUP(C87,'Mode Emploi'!$M$16:$N$20,2)),\"\")","v":1},{"$f":"IFERROR(CHOOSE(I87,\"\",'Mode Emploi'!$E$17,'Mode Emploi'!$E$18,'Mode Emploi'!$E$19,'Mode Emploi'!$E$20,),\"\")","v":""},{"$f":"1/COUNTA($B$87:$B$87)","v":1},{"$f":"IFERROR(J87*K87,\"\")","v":""}]
["7.5.4","Communication",{"$f":"M88","v":"Insuffisant"},{"$f":"L88","v":0},{"$f":"IFERROR(IF(D88<='Mode Emploi'!$G$17,'Mode Emploi'!$I$17,IF(D88<='Mode Emploi'!$G$18,'Mode Emploi'!$I$18,IF(D88<='Mode Emploi'!$G$19,'Mode Emploi'!$I$19,'Mode Emploi'!$I$20))),\"\")","v":"Conformité de niveau 1 : Il est nécessaire de formaliser les activités réalisées."},null,null,"Sous-Article",null,"vérifier si Somme = 1 =>  ",{"$f":"SUM(K89:K91)","v":1},{"$f":"IFERROR(SUM(L89:L91),\"\")","v":0},{"$f":"IFERROR(IF(L88<='Mode Emploi'!$G$17,'Mode Emploi'!$H$17,IF(L88<='Mode Emploi'!$G$18,'Mode Emploi'!$H$18,IF(L88<='Mode Emploi'!$G$19,'Mode Emploi'!$H$19,'Mode Emploi'!$H$20))),\"\")","v":"Insuffisant"},{"$f":"1/COUNTA($M$77:$M$91)","v":0.2},{"$f":"N88*L88","v":0}]
["cr 63","Le consultant assure que toutes les obligations concernant la communication relative à la mission sont remplies (par exemple, accords de confidentialité, préparation d’études de cas, articles, demandes de références, etc.)","Choix de \nVÉRACITÉ",{"$f":"J89","v":""},{"$f":"CHOOSE(I89,\"Libellé du critère quand il sera choisi\",'Mode Emploi'!$B$17,'Mode Emploi'!$B$18,'Mode Emploi'!$B$19,'Mode Emploi'!$B$20,,)","v":"Libellé du critère quand il sera choisi"},null,{"$f":"G87+1","v":62},{"$f":"C89","v":"Choix de \rVÉRACITÉ"},{"$f":"IFERROR((VLOOKUP(C89,'Mode Emploi'!$M$16:$N$20,2)),\"\")","v":1},{"$f":"IFERROR(CHOOSE(I89,\"\",'Mode Emploi'!$E$17,'Mode Emploi'!$E$18,'Mode Emploi'!$E$19,'Mode Emploi'!$E$20,),\"\")","v":""},{"$f":"1/COUNTA($B$89:$B$91)","v":0.33333333333333331},{"$f":"IFERROR(J89*K89,\"\")","v":""}]
["cr 64","Le client est débriefé à la fin de la mission. ","Choix de \nVÉRACITÉ","",{"$f":"CHOOSE(I90,\"Libellé du critère quand il sera choisi\",'Mode Emploi'!$B$17,'Mode Emploi'!$B$18,'Mode Emploi'!$B$19,'Mode Emploi'!$B$20,,)","v":"Libellé du critère quand il sera choisi"},null,{"$f":"G89+1","v":63},"Choix de \rVÉRACITÉ",{"$f":"IFERROR((VLOOKUP(C90,'Mode Emploi'!$M$16:$N$20,2)),\"\")","v":1},{"$f":"IFERROR(CHOOSE(I90,\"\",'Mode Emploi'!$E$17,'Mode Emploi'!$E$18,'Mode Emploi'!$E$19,'Mode Emploi'!$E$20,),\"\")","v":""},{"$f":"1/COUNTA($B$89:$B$91)","v":0.33333333333333331},""]
["cr 65","Le consultant traite toutes les questions mineures restées en souffrance après l’exécution de la mission de façon à pouvoir effectuer la clôture. ","Choix de \nVÉRACITÉ","",{"$f":"CHOOSE(I91,\"Libellé du critère quand il sera choisi\",'Mode Emploi'!$B$17,'Mode Emploi'!$B$18,'Mode Emploi'!$B$19,'Mode Emploi'!$B$20,,)","v":"Libellé du critère quand il sera choisi"},null,64,"Choix de \rVÉRACITÉ",{"$f":"IFERROR((VLOOKUP(C91,'Mode Emploi'!$M$16:$N$20,2)),\"\")","v":1},{"$f":"IFERROR(CHOOSE(I91,\"\",'Mode Emploi'!$E$17,'Mode Emploi'!$E$18,'Mode Emploi'!$E$19,'Mode Emploi'!$E$20,),\"\")","v":""},{"$f":"1/COUNTA($B$89:$B$91)","v":0.33333333333333331},""]

{"sheet":"Résultats globaux","index":2,"n_rows":50,"n_cols":19,"rows_kept":50,"cut":false,"hidden":false,"merged":[[9,0,9,3],[24,5,24,7],[30,0,30,7],[28,0,28,4],[32,10,32,14],[3,0,3,3],[5,0,5,1],[6,0,6,1],[5,2,5,3],[23,5,23,7],[15,0,15,3],[5,6,6,7],[13,0,13,3],[9,4,9,7],[4,0,4,1],[4,2,4,3],[14,0,14,3],[22,0,22,4],[22,5,22,7],[8,0,8,7],[21,0,21,7]]}
[{"$f":"'Mode Emploi'!B1","v":0},null,null,null,null,null,null,"Impression sur pages A4 100% en format horizontal"]
[null,null,null,null,{"$f":"'Mode Emploi'!D2","v":"   Autodiagnostic selon la norme ISO/DIS 20700:2016"}]
[]
["Informations sur le prestataire de conseil",null,null,null,null,null,"Informations sur l'Autodiagnostic"]
[{"$f":"'Mode Emploi'!B5","v":"Etablissement :"},null,null,null,{"$f":"Recommandations!A4","v":"Date de l'autodiagnostic : "},{"$f":"IF(Recommandations!C4=\"\",\"\",Recommandations!C4)","v":""},{"$f":"Recommandations!A7","v":"L'équipe d'autodiagnostic :"}]
[{"$f":"'Mode Emploi'!B6","v":" Utilisateur : "},null,{"$f":"'Mode Emploi'!E6","v":"NOM et Prénom"},null,"Responsable : ",{"$f":"IF(Recommandations!C5=\"\",\"\",Recommandations!C5)","v":"NOM et Prénom"},{"$f":"Recommandations!C7","v":"Noms et Prénoms des participants"}]
[null,null,{"$f":"'Mode Emploi'!E7","v":"email :"},{"$f":"'Mode Emploi'!I7","v":"Tél :"},{"$f":"IF(Recommandations!C6=\"\",\"\",Recommandations!C6)","v":"Tél :"},{"$f":"IF(Recommandations!E6=\"\",\"\",Recommandations!E6)","v":"@ :"}]
[]
["TABLEAUX DE BORD sur les niveaux de CONFORMITÉ selon les recommandations de la norme ISO DIS 20700:2016",null,null,null,null,null,null,null,null,null,null,null,"Utilitaires pour les CALCULS et les GRAPHIQUES"]
["Niveaux de VÉRACITÉ des 65 critères d'exigence ",null,null,null,"Niveaux de CONFORMITÉ des ARTICLES aux recommandations de la norme"]
[null,null,null,null,null,"Moyenne générale :",{"$f":"G33","v":0},{"$f":"E33","v":"Insuffisant"},null,null,"Histogramme des niveaux de CONFORMITÉ",null,null,null,null,"Histogramme des niveaux de VÉRACITÉ"]
[null,null,null,null,null,null,null,null,null,null,"CONFORMITÉ","Nb d'Articles","Tracer la moyenne",null,"VÉRACITÉ",null,"Nb de critères d'exigences","Ecart vs Total des critères","Total des critères"]
[null,null,null,null,null,null,null,null,null,null,"Niveaux",{"$f":"SUM(L14:L17)","v":13},": Total ou 0",null,"Niveaux","N°",{"$f":"SUM(Q14:Q17)","v":0},{"$f":"154-Q13","v":154},{"$f":"MAX(Recommandations!G1:G92)","v":64}]
[null,null,null,null,null,null,null,null,null,null,{"$f":"'Mode Emploi'!H17","v":"Insuffisant"},{"$f":"IFERROR(COUNTIFS($F$35:$F$50,K14),0)","v":13},{"$f":"IF($E$33=K14,30,0)","v":30},null,"Faux",{"$f":"'Mode Emploi'!N17","v":2},{"$f":"IFERROR(COUNTIFS(Recommandations!$I$13:$I$91,$P14),0)","v":0}]
["Niveaux de CONFORMITÉ des 13 SOUS-ARTICLES de la norme (et Moyenne)",null,null,null,null,null,null,null,null,null,{"$f":"'Mode Emploi'!H18","v":"Informel"},{"$f":"IFERROR(COUNTIFS($F$35:$F$50,K15),0)","v":0},{"$f":"IF($E$33=K15,30,0)","v":0},null,"Plutôt Faux",{"$f":"'Mode Emploi'!N18","v":3},{"$f":"IFERROR(COUNTIFS(Recommandations!$I$13:$I$91,$P15),0)","v":0}]
[null,null,null,null,null,null,null,null,null,null,{"$f":"'Mode Emploi'!H19","v":"Convaincant"},{"$f":"IFERROR(COUNTIFS($F$35:$F$50,K16),0)","v":0},{"$f":"IF($E$33=K16,30,0)","v":0},null,"Plutôt Vrai",{"$f":"'Mode Emploi'!N19","v":4},{"$f":"IFERROR(COUNTIFS(Recommandations!$I$13:$I$91,$P16),0)","v":0}]
[null,null,null,null,null,null,null,null,null,null,{"$f":"'Mode Emploi'!H20","v":"Conforme"},{"$f":"IFERROR(COUNTIFS($F$35:$F$50,K17),0)","v":0},{"$f":"IF($E$33=K17,30,0)","v":0},null,"Vrai",{"$f":"'Mode Emploi'!N20","v":5},{"$f":"IFERROR(COUNTIFS(Recommandations!$I$13:$I$91,$P17),0)","v":0}]
[]
[]
[]
[]
["BILAN, COMMENTAIRES et PLANS D'AMÉLIORATION"]
["Taux de CONFORMITÉ aux recommandations pour les 13 SOUS-ARTICLES de la norme",null,null,null,null,"COMMENTAIRES sur les RÉSULTATS obtenus"]
[null,null,null,null,null,"Commentaires (collectifs si possible)  :"]
[null,null,null,null,null,"DÉCISIONS : Plans d'action PRIORITAIRES"]
[null,null,null,null,null,"QUOI\nObjectifs à atteindre","QUI\nen Interne ou en Externe","QUAND ET OÙ\nDate et Champ d'application"]
[null,null,null,null,null,"Plan n°1 :"]
[null,null,null,null,null,"Plan n°2 :"]
["en pointillés verts : seuil minimal paramétré pour être \"Conforme\" (voir onglet {Mode d'Emploi})",null,null,null,null,"Plan n°3 :",null,null,null,"Niveau moyen sur l'ensemble des articles de la norme ISO DIS 20700:2016"]
[]
["TABLEAU de SYNTHÈSE des RÉSULTATS moyennés de l'évaluation quant au degré de réalisation des actions associées au respect des exigences de l'ISO DIS 20700:2016",null,null,null,null,null,null,null,null,null,null,null,"Coloriage des zones des ARTICLES",null,"Tracage de la limite de CONFORMITÉ"]
[null,null,null,null,null,"Evaluations","Taux %","Niveaux de CONFORMITÉ",null,null,{"$f":"CONCATENATE(\"Fond \",A34)","v":"Fond Art. 4"},{"$f":"CONCATENATE(\"Fond \",A38)","v":"Fond Art. 5"},{"$f":"CONCATENATE(\"Fond \",A43)","v":"Fond Art. 6"},{"$f":"CONCATENATE(\"Fond \",A45)","v":"Fond Art. 7"},{"$f":"'Mode Emploi'!F20","v":0.9}]
["Niveau moyen sur l'ensemble des articles de la norme ISO DIS 20700:2016",null,null,null,{"$f":"IFERROR(IF(G33<='Mode Emploi'!$G$17,'Mode Emploi'!$H$17,IF(G33<='Mode Emploi'!$G$18,'Mode Emploi'!$H$18,IF(G33<='Mode Emploi'!$G$19,'Mode Emploi'!$H$19,'Mode Emploi'!$H$20))),\"\")","v":"Insuffisant"},null,{"$f":" AVERAGE(G34,G38,G43,G45)","v":0},{"$f":"PROPER(MID(Recommandations!E11,14,9))","v":" Niveau 1"},null,null,"Utilitaires pour les CALCULS et les GRAPHIQUES"]
[{"$f":"Recommandations!A11","v":"Art. 4"},{"$f":"Recommandations!B11","v":"Principes"},null,null,{"$f":"Recommandations!C11","v":"Insuffisant"},null,{"$f":"Recommandations!D11","v":0},{"$f":"PROPER(MID(Recommandations!E12,14,9))","v":" Niveau 1"}]
[null,{"$f":"Recommandations!A12","v":"4.3"},"Politiques",null,null,{"$f":"Recommandations!C12","v":"Insuffisant"},{"$f":"Recommandations!D12","v":0},{"$f":"PROPER(MID(Recommandations!E12,14,9))","v":" Niveau 1"},null,null,1,0,0,1,{"$f":"$O$32","v":0.9}]
[null,{"$f":"Recommandations!A36","v":"4.4"},"Evaluation et amélioration continues",null,null,{"$f":"Recommandations!C36","v":"Insuffisant"},{"$f":"Recommandations!D36","v":0},{"$f":"PROPER(MID(Recommandations!E36,14,9))","v":" Niveau 1"},null,null,1,0,0,0,{"$f":"$O$32","v":0.9}]
[null,{"$f":"Recommandations!A40","v":"4.5"},"Réclamations et litiges",null,null,{"$f":"Recommandations!C40","v":"Insuffisant"},{"$f":"Recommandations!D40","v":0},{"$f":"PROPER(MID(Recommandations!E40,14,9))","v":" Niveau 1"},null,null,1,0,0,0,{"$f":"$O$32","v":0.9}]
[{"$f":"Recommandations!A42","v":"Art. 5"},{"$f":"Recommandations!B42","v":"Proposition"},null,null,{"$f":"Recommandations!C42","v":"Insuffisant"},null,{"$f":"Recommandations!D42","v":0},{"$f":"PROPER(MID(Recommandations!E42,14,9))","v":" Niveau 1"}]
[null,{"$f":"Recommandations!A43","v":"5.1"},"Généralités",null,null,{"$f":"Recommandations!C43","v":"Insuffisant"},{"$f":"Recommandations!D43","v":0},{"$f":"PROPER(MID(Recommandations!E43,14,9))","v":" Niveau 1"},null,null,1,1,0,0,{"$f":"$O$32","v":0.9}]
[null,{"$f":"Recommandations!A49","v":"5.2"},"Objectifs ",null,null,{"$f":"Recommandations!C49","v":"Insuffisant"},{"$f":"Recommandations!D49","v":0},{"$f":"PROPER(MID(Recommandations!E49,14,9))","v":" Niveau 1"},null,null,0,1,0,0,{"$f":"$O$32","v":0.9}]
[null,{"$f":"Recommandations!A51","v":"5.3"},"Données d'éntrée",null,null,{"$f":"Recommandations!C51","v":"Insuffisant"},{"$f":"Recommandations!D51","v":0},{"$f":"PROPER(MID(Recommandations!E51,14,9))","v":" Niveau 1"},null,null,0,1,0,0,{"$f":"$O$32","v":0.9}]
[null,{"$f":"Recommandations!A53","v":"5.4"},"Résultats",null,null,{"$f":"Recommandations!C53","v":"Insuffisant"},{"$f":"Recommandations!D53","v":0},{"$f":"PROPER(MID(Recommandations!E53,14,9))","v":" Niveau 1"},null,null,0,1,0,0,{"$f":"$O$32","v":0.9}]
[{"$f":"Recommandations!A65","v":"Art. 6"},{"$f":"Recommandations!B65","v":"Réalisation"},null,null,{"$f":"Recommandations!C65","v":"Insuffisant"},null,{"$f":"Recommandations!D65","v":0},{"$f":"PROPER(MID(Recommandations!E65,14,9))","v":" Niveau 1"}]
[null,{"$f":"Recommandations!A66","v":"6.5"},"Contenu",null,null,{"$f":"Recommandations!C66","v":"Insuffisant"},{"$f":"Recommandations!D66","v":0},{"$f":"PROPER(MID(Recommandations!E66,14,9))","v":" Niveau 1"},null,null,0,1,1,0,{"$f":"$O$32","v":0.9}]
[{"$f":"Recommandations!A76","v":"Art. 7"},{"$f":"Recommandations!B76","v":"Clôture"},null,null,{"$f":"Recommandations!C76","v":"Insuffisant"},null,{"$f":"Recommandations!D76","v":0},{"$f":"PROPER(MID(Recommandations!E76,14,9))","v":" Niveau 1"}]
[null,{"$f":"Recommandations!A77","v":"7.4"},"Résultats",null,null,{"$f":"Recommandations!C77","v":"Insuffisant"},{"$f":"Recommandations!D77","v":0},{"$f":"PROPER(MID(Recommandations!E77,14,9))","v":" Niveau 1"},null,null,0,0,1,1,{"$f":"$O$32","v":0.9}]
[null,{"$f":"Recommandations!A81","v":"7.5.1"},"Questions juridiques et contractuelles ",null,null,{"$f":"Recommandations!C81","v":"Insuffisant"},{"$f":"Recommandations!D81","v":0},{"$f":"PROPER(MID(Recommandations!E81,14,9))","v":" Niveau 1"},null,null,0,0,0,1,{"$f":"$O$32","v":0.9}]
[null,{"$f":"Recommandations!A83","v":"7.5.2"},"Evaluation finale et améliorations ",null,null,{"$f":"Recommandations!C83","v":"Insuffisant"},{"$f":"Recommandations!D83","v":0},{"$f":"PROPER(MID(Recommandations!E83,14,9))","v":" Niveau 1"},null,null,0,0,0,1,{"$f":"$O$32","v":0.9}]
[null,{"$f":"Recommandations!A86","v":"7.5.3"},"Questions administratives",null,null,{"$f":"Recommandations!C86","v":"Insuffisant"},{"$f":"Recommandations!D86","v":0},{"$f":"PROPER(MID(Recommandations!E86,14,9))","v":" Niveau 1"},null,null,0,0,0,1,{"$f":"$O$32","v":0.9}]
[null,{"$f":"Recommandations!A88","v":"7.5.4"},"Communication",null,null,{"$f":"Recommandations!C88","v":"Insuffisant"},{"$f":"Recommandations!D88","v":0},{"$f":"PROPER(MID(Recommandations!E88,14,9))","v":" Niveau 1"},null,null,0,0,0,1,{"$f":"$O$32","v":0.9}]

{"sheet":"Résultats par Article","index":3,"n_rows":43,"n_cols":8,"rows_kept":43,"cut":false,"hidden":false,"merged":[[37,5,37,7],[38,5,38,7],[10,5,10,7],[11,5,11,7],[5,0,5,1],[5,2,5,3],[6,0,6,1],[18,5,18,7],[19,5,19,7],[20,5,20,7],[27,5,27,7],[28,5,28,7],[29,5,29,7],[36,5,36,7],[4,0,4,1],[4,2,4,3],[5,6,6,7],[9,5,9,7],[1,0,1,7],[3,0,3,3]]}
[{"$f":"'Mode Emploi'!B1","v":0},null,null,null,null,null,null,"Impression sur pages A4 100% en format horizontal"]
["  Résultats détaillés par ARTICLE de l'autodiagnostic selon la norme ISO/DIS 20700:2016"]
[]
["Informations sur le Service Management de la Qualité",null,null,null,null,null,"Informations sur l'Autodiagnostic"]
[{"$f":"'Mode Emploi'!B5","v":"Etablissement :"},null,{"$f":"'Mode Emploi'!E5","v":"Nom de l'établissement / entreprise / organisation..."},null,{"$f":"Recommandations!A4","v":"Date de l'autodiagnostic : "},{"$f":"IF(Recommandations!C4=\"\",\"\",Recommandations!C4)","v":""},{"$f":"Recommandations!A7","v":"L'équipe d'autodiagnostic :"}]
[{"$f":"'Mode Emploi'!B6","v":" Utilisateur : "},null,{"$f":"'Mode Emploi'!E6","v":"NOM et Prénom"},null,"Responsable : ",{"$f":"IF(Recommandations!C5=\"\",\"\",Recommandations!C5)","v":"NOM et Prénom"},{"$f":"Recommandations!C7","v":"Noms et Prénoms des participants"}]
[null,null,{"$f":"'Mode Emploi'!E7","v":"email :"},{"$f":"'Mode Emploi'!I7","v":"Tél :"},{"$f":"IF(Recommandations!C6=\"\",\"\",Recommandations!C6)","v":"Tél :"},{"$f":"IF(Recommandations!E6=\"\",\"\",Recommandations!E6)","v":"@ :"}]
[]
[null,{"$f":"Recommandations!A11","v":"Art. 4"},{"$f":"Recommandations!B11","v":"Principes"}]
[null,"Niveau d'évaluation"," Taux de CONFORMITÉ aux critères d'exigence",null,null,"COMMENTAIRES sur les RÉSULTATS obtenus"]
[null,{"$f":"'Résultats globaux'!E34","v":"Insuffisant"},{"$f":"'Résultats globaux'!G34","v":0},null,null,"Commentaires (collectifs si possible)  :"]
[null,null,null,null,null,"DÉCISIONS : Plans d'action PRIORITAIRES"]
[null,null,null,null,null,"QUOI\nObjectifs à atteindre","QUI\nen Interne ou en Externe","QUAND ET OÙ\nDate et Champ d'application"]
[null,null,null,null,null,"Plan n°1 :","                            "]
[null,null,null,null,null,"Plan n°2 :"]
[null,null,null,null,null,"   Plan n°3 :"]
[]
[null,{"$f":"Recommandations!A42","v":"Art. 5"},{"$f":"Recommandations!B42","v":"Proposition"}]
[null,"Niveau d'évaluation"," Taux de CONFORMITÉ aux critères d'exigence",null,null,"COMMENTAIRES sur les RÉSULTATS obtenus"]
[null,{"$f":"'Résultats globaux'!E38","v":"Insuffisant"},{"$f":"'Résultats globaux'!G38","v":0},null,null,"Commentaires (collectifs si possible)  :"]
[null,null,null,null,null,"DÉCISIONS : Plans d'action PRIORITAIRES"]
[null,null,null,null,null,"QUOI\nObjectifs à atteindre","QUI\nen Interne ou en Externe","QUAND ET OÙ\nDate et Champ d'application"]
[null,null,null,null,null,"Plan n°1 :"]
[null,null,null,null,null,"Plan n°2 :"]
[null,null,null,null,null,"   Plan n°3 :"]
[]
[null,{"$f":"Recommandations!A65","v":"Art. 6"},{"$f":"Recommandations!B65","v":"Réalisation"}]
[null,"Niveau d'évaluation"," Taux de CONFORMITÉ aux critères d'exigence",null,null,"COMMENTAIRES sur les RÉSULTATS obtenus"]
[null,{"$f":"'Résultats globaux'!E43","v":"Insuffisant"},{"$f":"'Résultats globaux'!G43","v":0},null,null,"Commentaires (collectifs si possible)  :"]
[null,null,null,null,null,"DÉCISIONS : Plans d'action PRIORITAIRES"]
[null,null,null,null,null,"QUOI\nObjectifs à atteindre","QUI\nen Interne ou en Externe","QUAND ET OÙ\nDate et Champ d'application"]
[null,null,null,null,null,"Plan n°1 :"]
[null,null,null,null,null,"Plan n°2 :"]
[null,null,null,null,null,"   Plan n°3 :"]
[]
[null,{"$f":"Recommandations!A76","v":"Art. 7"},{"$f":"Recommandations!B76","v":"Clôture"}]
[null,"Niveau d'évaluation"," Taux de CONFORMITÉ aux critères d'exigence",null,null,"COMMENTAIRES sur les RÉSULTATS obtenus"]
[null,{"$f":"'Résultats globaux'!E45","v":"Insuffisant"},{"$f":"'Résultats globaux'!G45","v":0},null,null,"Commentaires (collectifs si possible)  :"]
[null,null,null,null,null,"DÉCISIONS : Plans d'action PRIORITAIRES"]
[null,null,null,null,null,"QUOI\nObjectifs à atteindre","QUI\nen Interne ou en Externe","QUAND ET OÙ\nDate et Champ d'application"]
[null,null,null,null,null,"Plan n°1 :"]
[null,null,null,null,null,"Plan n°2 :"]
[null,null,null,null,null,"Plan n°3 :"]

{"sheet":"Conseils","index":4,"n_rows":22,"n_cols":5,"rows_kept":22,"cut":false,"hidden":false,"merged":[[3,0,3,2],[9,0,9,4],[5,0,5,4],[14,0,14,4],[10,3,13,3],[17,3,21,3],[17,4,21,4],[10,4,13,4],[6,4,8,4],[6,3,8,3],[16,0,16,4]]}
[null,null,null,"   Autodiagnostic selon la norme ISO/DIS 20700:2016"]
[null,null,null,"\"Lignes directrices relatives aux services de conseil en management\", édition  Afnor, \nwww.afnor.org, mai 2016"]
[]
[null,null,null,"Quelques CONSEILS pour atteindre le respect des exigences..."]
[null,null,"Articles","Quoi","Qui"]
["Art. 4    Principes"]
[null,"4.3","Politique ","Au cours d'une mission type, le consultant et le client entreprennent un ensemble d'activités requises pour parvenir aux objectifs et aux changements convenus. Ces activités sont généralement appelées  « le processus de conseil » .","Le consultant et le client"]
[null,"4.4","Evaluation et amélioration continues"]
[null,"4.5","Réclamation et litiges"]
["Art. 5    Proposition"]
[null,"5.1","Généralités","La proposition constitue la première phase d'une mission de conseil. Le consultant acquiert une compréhension de la situation et des problématiques du client ; le client comprend la capacité d'intervention du consultant par rapport à ses problématiques. Le consultant et le client concluent un accord clair sur le périmètre et l'approche du service à fournir, et s'engagent à travailler ensemble.","Le consultant et le client"]
[null,"5.2","Objectifs "]
[null,"5.3","Données d’entrée"]
[null,"5.4","Résultats "]
["Art. 6    Réalisation "]
[null,"6.5","Contenu","Une fois que l'accord conclu, la deuxième phase de la mission est la réalisation. Le consultant exécute le service, suivant l'approche et le plan convenus. Pour arriver à un résultat mutuellement bénéfique, le consultant et le client ont besoin de collaborer en confiance, avec loyauté et dans un respect mutuel.","Le consultant et le client"]
["Art. 7    Clôture"]
[null,"7.4","Résultats ","La clôture constitue la phase finale de la mission. Après l'achèvement des livrables et l'évaluation des résultats, la mission se termine par le traitement de tous les sujets en cours et l'accomplissement de toutes les obligations juridiques et contractuelles. Il est essentiel que le client confirme au consultant la réception formelle de la mission.","Le consultant et le client"]
[null,"7.5.1","Questions juridiques et contractuelles "]
[null,"7.5.2","Evaluation finale et améliorations "]
[null,"7.5.3","Questions administratives"]
[null,"7.5.4","Communication"]

{"sheet":"Déclaration ISO 17050","index":5,"n_rows":34,"n_cols":6,"rows_kept":34,"cut":false,"hidden":false,"merged":[[32,0,32,2],[28,0,28,2],[28,3,28,5],[29,0,29,2],[29,3,29,5],[30,0,30,2],[30,3,30,4],[27,0,27,2],[27,3,27,5],[17,0,17,5],[18,0,18,5],[19,0,19,2],[19,3,19,5],[20,0,20,2],[20,3,20,5],[21,0,21,2],[21,3,21,5],[23,0,23,5],[25,0,25,2],[25,3,25,5],[11,0,11,3],[1,0,1,5],[2,0,2,5],[3,0,3,2],[3,3,3,5],[4,0,4,2],[4,3,4,5],[6,0,6,5],[7,0,7,5],[8,0,8,5],[9,0,9,5],[10,0,10,3]]}
[" Fiche de déclaration de conformité par une première partie - norme ISO 17050",null,null,null,null,"Enregistrement qualité : impression sur 1 page A4 100% en vertical"]
["Déclaration de conformité selon la norme NF EN ISO 17050 Partie 1 : Exigences générales"]
["Évaluation de la conformité - Déclaration de conformité du fournisseur (NF EN ISO/CEI 17050-1)"]
["Date limite de validité de la déclaration :",null,null,"Référence unique de la déclaration ISO 17050 :"]
[{"$f":"IFERROR(A33+364,\"Date de la déclaration + 1 an\")","v":"Date de la déclaration + 1 an"},null,null,{"$f":"IF(A33=\"\",\"remplir la cellule de date de la déclaration (onglet ISO 17050)\",IF(ISERROR(YEAR(A33)),\"date de la déclaration invalide\",CONCATENATE(\"Autodeclaration_ISO_17050_sur_la_NF_S99-170_en_\",YEAR(A33),\"_\",MONTH(A33),\"_\",DAY(A33))))","v":"date de la déclaration invalide"}]
[]
["Objet de la déclaration : Niveau de CONFORMITÉ aux EXIGENCES de la norme ISO DIS 20700:2016"]
[{"$f":"'Mode Emploi'!E5","v":"Nom de l'établissement / entreprise / organisation..."}]
["Nous soussigés, déclarons sous notre propre responsabilité que les niveaux de conformité de nos pratiques professionnelles ont été mesurés d'après les exigences de la norme ISO/DIS 20700:2016."]
["Nous avons appliqué la meilleure rigueur d'élaboration et d'analyse (évaluation par plusieurs personnes compétentes) et nous avons respecté les règles d'éthique professionnelle (absence de conflits d'intérêt, respect des opinions, liberté des choix) pour parvenir aux résultats ci-dessous."]
["Tableau des résultats de CONFORMITÉ de nos activités \nselon les critères d'exigence tirés de la norme ISO DIS 20700:2016",null,null,null,"Taux moyen","Niveaux de Conformité"]
["Niveau moyen sur l'ensemble des articles de la norme ISO DIS 20700:2016:",null,null,null,{"$f":"'Résultats globaux'!G33","v":0},{"$f":"IF(E12>='Mode Emploi'!$F$19,\"Déclarable\",\"Non déclarable\")","v":"Non déclarable"}]
[{"$f":"'Résultats globaux'!A34","v":"Art. 4"},{"$f":"'Résultats globaux'!B34","v":"Principes"},null,null,{"$f":"'Résultats globaux'!G34","v":0},{"$f":"IF(E13>='Mode Emploi'!$F$19,\"Déclarable\",\"Non déclarable\")","v":"Non déclarable"}]
[{"$f":"'Résultats globaux'!A38","v":"Art. 5"},{"$f":"'Résultats globaux'!B38","v":"Proposition"},null,null,{"$f":"'Résultats globaux'!G38","v":0},{"$f":"IF(E14>='Mode Emploi'!$F$19,\"Déclarable\",\"Non déclarable\")","v":"Non déclarable"}]
[{"$f":"'Résultats globaux'!A43","v":"Art. 6"},{"$f":"'Résultats globaux'!B43","v":"Réalisation"},null,null,{"$f":"'Résultats globaux'!G43","v":0},{"$f":"IF(E15>='Mode Emploi'!$F$19,\"Déclarable\",\"Non déclarable\")","v":"Non déclarable"}]
[{"$f":"'Résultats globaux'!A45","v":"Art. 7"},{"$f":"'Résultats globaux'!B45","v":"Clôture"},null,null,{"$f":"'Résultats globaux'!G45","v":0},{"$f":"IF(E16>='Mode Emploi'!$F$19,\"Déclarable\",\"Non déclarable\")","v":"Non déclarable"}]
[]
["Documents d'appui consultables associés à la déclaration ISO 17050"]
["Déclaration de conformité selon l'ISO 17050 Partie 2 : Documentation d'appui  (NF EN ISO/CEI 17050-2)"]
["Documents génériques",null,null,"Documents spécifiques"]
["Norme PR ISO 20700:2016 \"Lignes directrices relatives aux services de conseil en management\", édition  Afnor\"",null,null,"Modifier les contenus bleus et mettre ensuite en noir : \nEnregistrements qualité : indiquez ceux que vous mettrez à disposition d'un auditeur. Il peut s'agir des onglets imprimés et signés de ce fichier d'autodiagnostic"]
["Outil d'autodiagnostic : Fichier Excel® automatisé mis au point à l'Université de Technologie de Compiègne, France (www.utc.fr) - voir sa dénomination au bas de la feuille",null,null,"Autre document d'appui : Mettre ici, et en noir, tout autre document d'appui éventuel pour cette déclaration"]
[]
["Signataires"]
["Personne indépendante à l'organisme : ",null,null,"Personne responsable de l'organisme : "]
["Indiquer les NOM et Prénom de la personne indépendante",null,null,{"$f":"'Mode Emploi'!E5","v":"Nom de l'établissement / entreprise / organisation..."}]
["Coordonnées professionnelles : ",null,null,"Coordonnées professionnelles : "]
["Organisme de la personne indépendante",null,null,{"$f":"'Mode Emploi'!E6","v":"NOM et Prénom"}]
["Adresse complète de l'organisme de la personne indépendante",null,null,"Adresse complète de l'Exploitant"]
["Code postal - Ville - Pays de l'organisme de la personne indépendante",null,null,"Code postal - Ville - Pays de l'Exploitant"]
["Tél et email de la personne indépendante",null,null,{"$f":"'Mode Emploi'!E7","v":"email :"},null,{"$f":"'Mode Emploi'!I7","v":"Tél :"}]
["Date de la déclaration (jj/mm/aaaa) :",null,null,"Date de l'autodiagnostic (jj/mm/aaaa) :"]
["Mettre la date de signature par la personne compétente",null,null,{"$f":"IF(Recommandations!C4=\"\",\"pas de date d'évaluation pour l'instant\",Recommandations!C4)","v":"pas de date d'évaluation pour l'instant"}]
["Signature :",null,null,"Signature :"]